{"text_format":"1","workbook":"xlsx","n_sheets":3,"sheets":["自己評価書作成メニュー","自己評価書","マスターシート"],"not_rendered":{"charts":0,"images":2,"macros":1,"external_links":0,"defined_names":250,"comments":0,"pivot_tables":0},"unopened":[],"bounds":{"document_bytes":16777216,"sheet_cells":100000,"rows_first":2000,"rows_last":500,"rows_between":2000,"halvings":0,"cell_chars":16384,"cell_head_chars":4096},"cells_cut":0,"cells_raw":0,"read":"whole","date_system":"1900"}

{"sheet":"自己評価書作成メニュー","index":0,"n_rows":14,"n_cols":7,"rows_kept":14,"cut":false,"hidden":true,"merged":[]}
[]
[]
[]
[]
[]
[null,null,null,null,null,null,"住宅性能評価 自己評価書 読込用ファイル"]
[]
[null,null,null,null,null,null,"マクロを有効にしてご利用下さい。"]
[]
[]
[]
[]
[]
[null,null,null,null,null,null,"評価する住宅の種類のボタンをクリックして下さい。"]

{"sheet":"自己評価書","index":1,"n_rows":84,"n_cols":249,"rows_kept":84,"cut":false,"hidden":false,"merged":[[83,85,83,86],[83,87,83,88],[24,81,32,81],[74,85,74,86],[74,87,74,88],[75,85,75,86],[75,87,75,88],[76,85,76,86],[76,87,76,88],[77,85,77,86],[77,87,77,88],[78,85,78,86],[78,87,78,88],[79,85,79,86],[79,87,79,88],[80,85,80,86],[80,87,80,88],[81,85,81,86],[81,87,81,88],[82,85,82,86],[82,87,82,88],[65,85,65,86],[65,87,65,88],[66,85,66,86],[66,87,66,88],[67,85,67,86],[67,87,67,88],[68,85,68,86],[68,87,68,88],[69,85,69,86],[69,87,69,88],[70,85,70,86],[52,85,52,86],[52,87,52,88],[53,85,53,86],[53,87,53,88],[54,85,54,86],[54,87,54,88],[55,85,55,86],[55,87,55,88],[70,87,70,88],[71,85,71,86],[71,87,71,88],[72,87,72,88],[73,85,73,86],[73,87,73,88],[56,85,56,86],[56,87,56,88],[57,85,57,86],[57,87,57,88],[58,85,58,86],[58,87,58,88],[59,85,59,86],[59,87,59,88],[60,85,60,86],[60,87,60,88],[61,85,61,86],[61,87,61,88],[62,85,62,86],[62,87,62,88],[63,85,63,86],[63,87,63,88],[64,85,64,86],[64,87,64,88],[42,85,42,86],[42,87,42,88],[43,85,43,86],[43,87,43,88],[44,85,44,86],[44,87,44,88],[45,85,45,86],[45,87,45,88],[47,85,47,86],[47,87,47,88],[48,85,48,86],[48,87,48,88],[49,85,49,86],[49,87,49,88],[50,85,50,86],[50,87,50,88],[51,85,51,86],[51,87,51,88],[33,85,33,86],[33,87,33,88],[34,85,34,86],[34,87,34,88],[35,85,35,86],[35,87,35,88],[36,85,36,86],[36,87,36,88],[37,85,37,86],[37,87,37,88],[38,85,38,86],[38,87,38,88],[39,85,39,86],[39,87,39,88],[40,85,40,86],[40,87,40,88],[41,85,41,86],[41,87,41,88],[19,233,32,233],[19,224,32,224],[18,141,18,145],[17,117,17,145],[1,7,1,43],[28,220,32,220],[28,221,32,221],[28,222,32,222],[18,130,18,140],[19,223,32,223],[29,217,32,217],[29,218,32,218],[19,219,19,222],[20,219,20,220],[20,221,20,222],[21,219,27,219],[21,220,27,220],[21,221,27,221],[21,222,27,222],[28,219,32,219],[19,214,32,214],[19,215,19,218],[20,215,20,216],[20,217,20,218],[21,215,28,215],[21,216,28,216],[21,217,28,217],[21,218,28,218],[29,215,32,215],[29,216,32,216],[28,211,32,211],[28,213,32,213],[21,210,27,210],[21,211,27,211],[21,212,27,212],[21,213,27,213],[28,210,32,210],[19,205,32,205],[19,153,19,154],[20,153,32,154],[19,206,19,209],[20,206,20,207],[20,208,20,209],[21,206,28,206],[21,207,28,207],[19,166,19,167],[19,162,19,163],[19,164,19,165],[19,204,32,204],[20,162,32,163],[20,164,32,165],[20,166,32,167],[19,199,32,199],[19,203,32,203],[20,179,32,180],[19,197,32,197],[19,198,32,198],[19,196,32,196],[19,194,32,194],[6,107,6,109],[7,107,7,109],[13,101,13,109],[17,111,17,116],[13,39,13,47],[17,46,17,67],[6,58,6,66],[7,57,7,66],[8,58,8,66],[9,57,9,66],[10,57,10,65],[11,57,11,65],[19,200,32,200],[19,195,32,195],[29,144,32,144],[20,144,28,144],[19,125,19,128],[28,138,32,138],[28,137,32,137],[28,140,32,140],[29,141,32,141],[19,137,19,140],[21,126,27,126],[20,137,20,138],[21,140,27,140],[18,117,18,128],[29,145,32,145],[29,143,32,143],[20,141,28,141],[28,139,32,139],[19,159,19,161],[20,61,20,65],[7,17,7,18],[8,17,8,18],[9,17,9,18],[10,17,10,18],[6,27,6,29],[7,27,7,29],[8,27,8,29],[9,27,9,29],[10,27,10,29],[83,153,83,154],[74,153,74,154],[75,153,75,154],[76,153,76,154],[77,153,77,154],[78,153,78,154],[79,153,79,154],[68,153,68,154],[69,153,69,154],[70,153,70,154],[71,153,71,154],[72,153,72,154],[73,153,73,154],[33,153,33,154],[34,153,34,154],[35,153,35,154],[36,153,36,154],[6,17,6,18],[18,148,18,158],[20,143,28,143],[20,135,20,136],[34,117,34,120],[34,129,34,132],[34,13,34,14],[33,15,33,16],[34,15,34,16],[19,107,19,110],[19,116,28,116],[20,104,32,104],[20,91,32,91],[19,112,28,112],[19,114,28,114],[33,76,33,77],[33,64,33,65],[20,105,32,105],[20,106,32,106],[20,107,32,107],[20,110,32,110],[19,66,32,67],[20,48,32,48],[21,64,32,65],[20,58,32,58],[20,108,32,108],[29,111,32,111],[21,52,32,54],[34,43,34,44],[34,61,34,63],[19,80,19,88],[19,39,32,39],[19,24,28,24],[19,38,32,38],[19,103,19,106],[20,85,26,88],[27,85,31,86],[27,87,31,88],[1,5,1,6],[19,192,32,192],[19,193,32,193],[18,112,18,116],[18,94,18,110],[17,148,17,169],[17,146,17,147],[17,18,32,18],[17,19,32,19],[17,20,32,20],[17,21,32,23],[20,145,28,145],[29,142,32,142],[19,117,32,120],[20,82,30,84],[31,82,32,84],[19,74,19,79],[19,68,32,71],[29,73,32,73],[29,80,32,80],[19,129,32,132],[18,159,18,169],[20,101,32,101],[20,99,32,99],[29,116,32,116],[20,103,32,103],[20,102,32,102],[19,113,28,113],[28,127,32,127],[29,135,32,135],[21,133,28,133],[6,40,6,45],[27,248,27,249],[33,162,33,163],[33,164,33,165],[33,166,33,167],[33,168,33,169],[19,146,28,146],[19,147,28,147],[20,157,32,158],[19,157,19,158],[19,168,19,169],[21,248,21,249],[22,248,22,249],[23,248,23,249],[24,248,24,249],[25,248,25,249],[26,248,26,249],[27,245,27,246],[20,155,32,156],[20,150,32,150],[29,147,32,147],[29,146,32,146],[19,227,32,227],[19,226,32,226],[21,245,21,246],[22,245,22,246],[23,245,23,246],[24,245,24,246],[25,245,25,246],[26,245,26,246],[33,151,33,152],[20,149,32,149],[19,151,19,152],[33,129,33,132],[33,78,33,79],[33,43,33,44],[33,50,33,51],[33,52,33,54],[33,27,33,31],[33,32,33,34],[33,68,33,71],[33,40,33,41],[21,136,28,136],[19,133,19,136],[29,133,32,133],[21,134,28,134],[19,148,19,150],[20,57,32,57],[20,43,32,44],[29,25,32,25],[19,47,32,47],[20,50,32,51],[20,52,20,56],[20,40,32,41],[29,72,32,72],[28,125,32,125],[21,125,27,125],[20,76,30,77],[29,112,32,112],[29,113,32,113],[29,122,32,122],[28,126,32,126],[29,114,32,114],[29,115,32,115],[21,123,28,123],[34,168,34,169],[19,225,32,225],[19,229,32,229],[19,230,32,230],[19,231,32,231],[34,164,34,165],[34,166,34,167],[34,162,34,163],[34,157,34,158],[33,155,33,156],[33,157,33,158],[34,155,34,156],[34,151,34,152],[29,206,32,206],[29,207,32,207],[29,208,32,208],[29,209,32,209],[21,208,28,208],[21,209,28,209],[19,210,19,213],[20,210,20,211],[20,212,20,213],[20,161,32,161],[19,201,32,201],[19,202,32,202],[19,228,32,228],[20,168,32,169],[20,159,32,159],[20,160,32,160],[19,155,19,156],[20,151,32,152],[28,212,32,212],[34,1,34,2],[34,3,34,4],[34,5,34,6],[33,1,33,2],[34,7,34,8],[33,96,33,98],[34,27,34,31],[34,32,34,34],[34,64,34,65],[34,68,34,71],[34,52,34,54],[34,96,34,98],[34,40,34,41],[34,50,34,51],[34,59,34,60],[34,66,34,67],[21,139,27,139],[21,128,27,128],[33,3,33,4],[33,5,33,6],[33,7,33,8],[33,59,33,60],[33,55,33,56],[33,117,33,120],[33,66,33,67],[33,9,33,10],[33,11,33,12],[33,21,33,23],[34,21,34,23],[34,9,34,10],[34,11,34,12],[33,13,33,14],[5,32,5,33],[19,57,19,65],[8,50,8,51],[5,50,5,51],[20,100,32,100],[20,95,32,95],[19,111,28,111],[19,94,19,98],[20,109,32,109],[6,93,6,94],[29,75,32,75],[20,78,30,79],[29,93,32,93],[20,92,28,92],[11,39,12,47],[19,92,19,93],[29,92,32,92],[6,50,6,51],[6,55,6,56],[10,33,10,38],[7,93,7,94],[9,33,9,38],[7,75,7,76],[29,46,32,46],[19,46,28,46],[21,55,32,56],[8,40,8,45],[7,40,7,47],[6,89,6,91],[7,89,7,91],[9,89,9,91],[6,75,6,76],[20,148,32,148],[20,139,20,140],[20,133,20,134],[21,138,27,138],[21,135,28,135],[19,121,19,124],[19,48,19,56],[19,99,19,102],[21,137,27,137],[20,142,28,142],[29,134,32,134],[29,136,32,136],[28,128,32,128],[19,142,19,145],[18,89,18,93],[17,89,17,110],[18,80,18,88],[29,123,32,123],[29,124,32,124],[20,121,20,122],[20,125,20,126],[17,74,17,88],[32,85,32,88],[21,124,28,124],[17,0,32,0],[17,3,32,4],[17,5,32,6],[17,7,32,8],[17,1,32,2],[19,45,28,45],[19,26,32,26],[29,35,32,35],[19,37,32,37],[19,36,32,36],[18,47,18,67],[21,61,32,63],[20,59,32,60],[20,90,32,90],[20,89,32,89],[31,76,32,77],[20,49,32,49],[17,9,32,10],[17,11,32,12],[17,13,32,14],[17,15,32,16],[19,32,32,34],[19,35,28,35],[19,27,32,31],[17,17,32,17],[29,24,32,24],[19,25,28,25],[29,45,32,45],[70,13,70,14],[70,15,70,16],[19,72,28,73],[20,94,32,94],[29,74,32,74],[20,93,28,93],[18,74,18,79],[19,89,19,91],[7,34,7,38],[20,123,20,124],[74,40,74,41],[74,43,74,44],[74,50,74,51],[74,52,74,54],[74,55,74,56],[74,59,74,60],[74,61,74,63],[74,64,74,65],[74,66,74,67],[63,76,63,77],[63,78,63,79],[63,82,63,84],[63,96,63,98],[63,117,63,120],[64,82,64,84],[64,96,64,98],[64,117,64,120],[65,82,65,84],[65,96,65,98],[65,117,65,120],[66,82,66,84],[66,96,66,98],[9,40,9,45],[10,40,10,45],[19,42,32,42],[31,78,32,79],[20,96,32,98],[21,127,27,127],[20,127,20,128],[72,96,72,98],[69,78,69,79],[73,96,73,98],[73,117,73,120],[73,129,73,132],[69,82,69,84],[34,82,34,84],[34,76,34,77],[34,78,34,79],[34,55,34,56],[33,61,33,63],[33,82,33,84],[72,64,72,65],[72,66,72,67],[72,68,72,71],[72,76,72,77],[72,78,72,79],[72,82,72,84],[73,82,73,84],[66,117,66,120],[67,82,67,84],[19,115,28,115],[29,121,32,121],[21,121,28,121],[21,122,28,122],[74,166,74,167],[74,168,74,169],[72,1,72,2],[72,3,72,4],[72,5,72,6],[72,7,72,8],[72,9,72,10],[72,11,72,12],[72,13,72,14],[72,15,72,16],[72,21,72,23],[72,27,72,31],[72,32,72,34],[72,40,72,41],[72,43,72,44],[72,50,72,51],[72,52,72,54],[72,55,72,56],[72,59,72,60],[72,61,72,63],[74,1,74,2],[74,3,74,4],[74,5,74,6],[74,7,74,8],[74,9,74,10],[74,11,74,12],[74,27,74,31],[74,32,74,34],[74,13,74,14],[74,15,74,16],[74,21,74,23],[74,129,74,132],[81,68,81,71],[72,117,72,120],[72,129,72,132],[72,151,72,152],[72,155,72,156],[72,157,72,158],[72,162,72,163],[72,164,72,165],[73,61,73,63],[73,64,73,65],[73,66,73,67],[81,61,81,63],[81,64,81,65],[81,66,81,67],[75,59,75,60],[77,61,77,63],[77,64,77,65],[77,66,77,67],[77,129,77,132],[77,157,77,158],[77,162,77,163],[77,164,77,165],[78,164,78,165],[79,162,79,163],[79,164,79,165],[80,162,80,163],[80,164,80,165],[74,155,74,156],[74,157,74,158],[74,162,74,163],[74,164,74,165],[72,85,72,86],[72,166,72,167],[72,168,72,169],[76,157,76,158],[76,162,76,163],[76,164,76,165],[76,166,76,167],[76,168,76,169],[79,168,79,169],[80,168,80,169],[74,68,74,71],[74,76,74,77],[74,78,74,79],[74,82,74,84],[74,96,74,98],[74,117,74,120],[73,78,73,79],[74,151,74,152],[73,68,73,71],[73,76,73,77],[73,151,73,152],[73,155,73,156],[73,157,73,158],[73,162,73,163],[73,164,73,165],[73,166,73,167],[73,168,73,169],[77,68,77,71],[77,76,77,77],[77,78,77,79],[77,82,77,84],[77,96,77,98],[77,117,77,120],[73,1,73,2],[73,3,73,4],[73,5,73,6],[73,7,73,8],[73,9,73,10],[73,11,73,12],[73,13,73,14],[73,15,73,16],[73,21,73,23],[73,27,73,31],[73,32,73,34],[73,40,73,41],[73,43,73,44],[73,50,73,51],[73,52,73,54],[73,55,73,56],[73,59,73,60],[81,1,81,2],[81,3,81,4],[81,5,81,6],[81,7,81,8],[81,9,81,10],[81,11,81,12],[81,13,81,14],[81,15,81,16],[81,21,81,23],[81,27,81,31],[81,32,81,34],[81,40,81,41],[81,43,81,44],[81,50,81,51],[81,52,81,54],[81,55,81,56],[81,59,81,60],[76,1,76,2],[76,3,76,4],[76,5,76,6],[76,7,76,8],[70,61,70,63],[70,64,70,65],[70,66,70,67],[70,68,70,71],[70,76,70,77],[69,11,69,12],[69,13,69,14],[69,15,69,16],[69,21,69,23],[69,27,69,31],[69,32,69,34],[69,40,69,41],[69,43,69,44],[69,50,69,51],[69,52,69,54],[69,55,69,56],[69,59,69,60],[69,61,69,63],[69,64,69,65],[69,66,69,67],[69,68,69,71],[69,76,69,77],[70,1,70,2],[70,3,70,4],[70,5,70,6],[70,7,70,8],[70,9,70,10],[70,11,70,12],[70,21,70,23],[70,27,70,31],[70,32,70,34],[70,40,70,41],[70,43,70,44],[70,50,70,51],[70,52,70,54],[70,55,70,56],[70,59,70,60],[70,78,70,79],[70,82,70,84],[70,96,70,98],[70,117,70,120],[70,129,70,132],[70,151,70,152],[70,155,70,156],[70,157,70,158],[70,162,70,163],[70,164,70,165],[70,166,70,167],[70,168,70,169],[71,1,71,2],[71,3,71,4],[71,5,71,6],[71,7,71,8],[71,9,71,10],[71,11,71,12],[71,13,71,14],[71,15,71,16],[71,21,71,23],[71,27,71,31],[71,32,71,34],[71,68,71,71],[71,76,71,77],[71,78,71,79],[71,40,71,41],[71,43,71,44],[71,50,71,51],[71,52,71,54],[71,55,71,56],[71,59,71,60],[71,157,71,158],[71,162,71,163],[71,164,71,165],[71,166,71,167],[71,168,71,169],[71,82,71,84],[71,96,71,98],[71,117,71,120],[71,129,71,132],[71,151,71,152],[35,1,35,2],[35,3,35,4],[35,5,35,6],[35,7,35,8],[35,9,35,10],[71,155,71,156],[71,61,71,63],[71,64,71,65],[71,66,71,67],[35,11,35,12],[35,13,35,14],[35,15,35,16],[35,21,35,23],[35,27,35,31],[35,32,35,34],[35,40,35,41],[35,43,35,44],[35,50,35,51],[35,52,35,54],[35,55,35,56],[35,59,35,60],[35,61,35,63],[35,64,35,65],[35,66,35,67],[35,68,35,71],[35,76,35,77],[35,78,35,79],[35,82,35,84],[35,96,35,98],[35,117,35,120],[35,129,35,132],[35,151,35,152],[35,155,35,156],[35,157,35,158],[35,162,35,163],[35,164,35,165],[35,166,35,167],[35,168,35,169],[75,1,75,2],[75,3,75,4],[75,5,75,6],[75,7,75,8],[75,9,75,10],[75,11,75,12],[75,13,75,14],[75,15,75,16],[75,21,75,23],[75,27,75,31],[75,32,75,34],[75,40,75,41],[75,43,75,44],[75,50,75,51],[75,52,75,54],[75,55,75,56],[62,1,62,2],[62,3,62,4],[62,5,62,6],[62,7,62,8],[62,9,62,10],[62,164,62,165],[62,168,62,169],[63,1,63,2],[82,59,82,60],[75,61,75,63],[75,64,75,65],[75,66,75,67],[75,68,75,71],[75,76,75,77],[75,78,75,79],[75,82,75,84],[75,157,75,158],[75,162,75,163],[75,164,75,165],[75,166,75,167],[75,168,75,169],[75,96,75,98],[75,117,75,120],[75,129,75,132],[75,151,75,152],[75,155,75,156],[81,76,81,77],[81,78,81,79],[81,82,81,84],[81,157,81,158],[81,162,81,163],[81,164,81,165],[81,153,81,154],[81,166,81,167],[81,168,81,169],[81,96,81,98],[81,117,81,120],[81,129,81,132],[81,151,81,152],[81,155,81,156],[82,64,82,65],[82,66,82,67],[82,68,82,71],[82,76,82,77],[82,78,82,79],[82,82,82,84],[82,96,82,98],[82,117,82,120],[82,129,82,132],[82,151,82,152],[82,155,82,156],[82,157,82,158],[82,153,82,154],[82,162,82,163],[82,164,82,165],[82,166,82,167],[82,1,82,2],[82,3,82,4],[82,5,82,6],[82,7,82,8],[82,9,82,10],[82,11,82,12],[82,13,82,14],[82,15,82,16],[82,21,82,23],[82,27,82,31],[82,32,82,34],[82,40,82,41],[82,43,82,44],[82,50,82,51],[82,52,82,54],[82,55,82,56],[82,168,82,169],[83,1,83,2],[83,3,83,4],[83,5,83,6],[83,7,83,8],[83,9,83,10],[83,11,83,12],[83,13,83,14],[83,15,83,16],[83,21,83,23],[83,27,83,31],[83,32,83,34],[83,68,83,71],[83,76,83,77],[83,78,83,79],[83,40,83,41],[83,43,83,44],[83,50,83,51],[83,52,83,54],[83,55,83,56],[83,59,83,60],[83,157,83,158],[83,162,83,163],[83,164,83,165],[83,166,83,167],[83,168,83,169],[83,82,83,84],[83,96,83,98],[83,117,83,120],[83,129,83,132],[83,151,83,152],[82,61,82,63],[76,9,76,10],[83,155,83,156],[83,61,83,63],[83,64,83,65],[83,66,83,67],[76,11,76,12],[76,13,76,14],[76,15,76,16],[76,21,76,23],[76,27,76,31],[76,32,76,34],[76,40,76,41],[76,43,76,44],[76,50,76,51],[76,52,76,54],[76,55,76,56],[76,59,76,60],[76,61,76,63],[76,64,76,65],[76,66,76,67],[76,68,76,71],[76,76,76,77],[76,78,76,79],[76,82,76,84],[76,96,76,98],[76,117,76,120],[76,129,76,132],[76,151,76,152],[76,155,76,156],[77,151,77,152],[77,155,77,156],[78,151,78,152],[77,1,77,2],[77,3,77,4],[77,5,77,6],[77,7,77,8],[77,9,77,10],[77,11,77,12],[77,13,77,14],[77,15,77,16],[77,21,77,23],[77,27,77,31],[77,32,77,34],[77,40,77,41],[77,43,77,44],[77,50,77,51],[77,52,77,54],[77,55,77,56],[77,59,77,60],[77,166,77,167],[77,168,77,169],[78,1,78,2],[78,3,78,4],[78,5,78,6],[78,7,78,8],[78,9,78,10],[78,11,78,12],[78,13,78,14],[78,15,78,16],[78,21,78,23],[78,27,78,31],[78,32,78,34],[78,40,78,41],[78,43,78,44],[78,50,78,51],[78,52,78,54]],"merged_total":2664,"flags":["merged_cut"]}
[null,null,null,null,null,null,null,null,null,null,null,null,null,null,null,null,null,null,null,null,null,null,null,null,null,null,null,null,null,null,null,null,null,null,null,null,null,null,null,null,null,null,null,null,null,null,null,null,null,null,null,null,null,null,null,null,null,null,null,null,null,null,null,null,1]
[null,null,null,null,null,"件名："]
[]
["（住棟部分）"]
[]
[null,null,null,null,null,null,null,null,null,null,null,null,null,null,null,null,null,"１構造の安定",null,null,null,null,null,null,null,null,null,null,null,null,null,null,"1-6.",null,"地盤又は杭の許容支持力等及びその設定方法",null,null,null,null,null,null,null,null,null,null,null,null,null,null,null,"1-7.",null,"基礎の構造方法及び形式等",null,null,null,null,null,null,null,null,null,null,null,null,null,null,null,null,null,null,null,null,null,null,2,"火災時の安全",null,null,null,null,null,null,null,null,null,null,null,null,null,null,null,null,4,"維持管理への配慮",null,null,null,null,null,null,null,null,null,null,null,null,null,null,null,null,null,null,null,null,null,null,null,null,null,null,null,null,null,null,null,null,null,null,null,null,null,null,null,null,null,null,null,null,null,null,null,null,null,null,null,null,null,null,null,null,null,null,null,null,null,null,null,null,null,null,null,null,null,null,null,null,null,null,null,null,null,null,null,null,null,null,null,null,null,null,null,null,null,null,null,null,null,null,null,null,null,null,null,null,null,null,null,null,null,null,null,null,null,null,null,null,null,null,null,null,null,null,null,null,null,null,null,null,null,null,null,null,null,null,null,null,null,null,null,null,null,null,null,null,null,null,null,null,null,"読込種類","読込判定に使用（1: 概要、2: 等級）",2]
[null,null,null,null,null,null,null,null,null,null,null,null,null,null,null,null,null,"1-1.",null,"耐震等級(倒壊等防止)",null,null,null,null,null,null,"[0-3]",null,null,null,null,null,null,"地盤の許容応力度",null,null,null,null,null,{"$f":"IF(AO7=\"\",\"□\",\"■\")","v":"□"},null,null,null,null,null,null,"kN/㎡",null,null,null,"a.",null,"直接基礎",null,null,"構造方法",null,{"$f":"IF(BG7=\"\",\"□\",\"■\")","v":"□"},null,null,null,null,null,null,null,null,null,null,null,null,null,null,null,null,null,"2-5.",null,null,"耐火等級(開口部)",null,null,null,null,null,null,null,null,null,"[0-3]",null,null,null,null,"4-2.",null,"維持管理対策等級(共用配管)",null,null,null,null,null,null,null,null,null,null,"[0-3]",null,null,null,null,null,null,null,null,null,null,null,null,null,null,null,null,null,null,null,null,null,null,null,null,null,null,null,null,null,null,null,null,null,null,null,null,null,null,null,null,null,null,null,null,null,null,null,null,null,null,null,null,null,null,null,null,null,null,null,null,null,null,null,null,null,null,null,null,null,null,null,null,null,null,null,null,null,null,null,null,null,null,null,null,null,null,null,null,null,null,null,null,null,null,null,null,null,null,null,null,null,null,null,null,null,null,null,null,null,null,null,null,null,null,null,null,null,null,null,null,null,null,null,null,null,null,null,null,null,null,null,null,null,"評価の種類","〃","BM1に移動"]
[null,null,null,null,null,null,null,null,null,null,null,null,null,null,null,null,null,"1-2.",null,"耐震等級(損傷防止)",null,null,null,null,null,null,"[0-3]",null,null,null,null,null,null,null,null,null,null,null,null,"□","地盤改良後の数値とする",null,null,null,null,null,null,null,null,null,null,null,null,null,null,"形式",null,null,null,null,null,null,null,null,null,null,null,null,null,null,null,null,null,null,null,"2-6.",null,null,"耐火等級(開口部以外)",null,null,null,null,null,null,null,null,null,"[0-4]",null,null,null,null,"4-3.",null,"更新対策等級(共用排水管)",null,null,null,null,null,null,null,null,null,null,"[0-3]",null,null,null,null,null,null,null,null,null,null,null,null,null,null,null,null,null,null,null,null,null,null,null,null,null,null,null,null,null,null,null,null,null,null,null,null,null,null,null,null,null,null,null,null,null,null,null,null,null,null,null,null,null,null,null,null,null,null,null,null,null,null,null,null,null,null,null,null,null,null,null,null,null,null,null,null,null,null,null,null,null,null,null,null,null,null,null,null,null,null,null,null,null,null,null,null,null,null,null,null,null,null,null,null,null,null,null,null,null,null,null,null,null,null,null,null,null,null,null,null,null,null,null,null,null,null,null,null,null,null,null,null,null,"住宅の種類","〃",2]
[null,null,null,null,null,null,null,null,null,null,null,null,null,null,null,null,null,"1-3.",null,"免震構造物",null,null,null,null,null,null,null,null,null,null,null,null,null,"杭の許容支持力",null,null,null,null,null,{"$f":"IF(AO9=\"\",\"□\",\"■\")","v":"□"},null,null,null,null,null,null,"kN/本",null,null,null,"b.",null,"杭基礎",null,null,"杭種",null,{"$f":"IF(BG9=\"\",\"□\",\"■\")","v":"□"},null,null,null,null,null,null,null,null,null,null,null,null,null,null,null,null,null,3,"劣化の軽減",null,null,null,null,null,null,null,null,null,null,null,null,null,null,null,null,null,null,"共用排水立管の位置",null,null,null,null,null,"□","共用廊下に面する共用部分",null,null,null,null,null,null,null,null,null,null,null,null,null,null,null,null,null,null,null,null,null,null,null,null,null,null,null,null,null,null,null,null,null,null,null,null,null,null,null,null,null,null,null,null,null,null,null,null,null,null,null,null,null,null,null,null,null,null,null,null,null,null,null,null,null,null,null,null,null,null,null,null,null,null,null,null,null,null,null,null,null,null,null,null,null,null,null,null,null,null,null,null,null,null,null,null,null,null,null,null,null,null,null,null,null,null,null,null,null,null,null,null,null,null,null,null,null,null,null,null,null,null,null,null,null,null,null,null,null,null,null,null,null,null,null,null,null,"1.3 免震構造物 免震建築物","読込データとして使用",{"$f":"IF(work_tower_N01_3=マスターシート!C4, \"○\", \"\")","v":""}]
[null,null,null,null,null,null,null,null,null,null,null,null,null,null,null,null,null,"1-4.",null,"耐風等級",null,null,null,null,null,null,"[1-2]",null,null,null,null,null,null,"杭状改良地盤の許容支持力度",null,null,null,null,null,{"$f":"IF(AO10=\"\",\"□\",\"■\")","v":"□"},null,null,null,null,null,null,"kN/㎡",null,null,null,null,null,null,null,null,null,null,null,null,null,null,null,null,null,null,null,null,null,null,null,null,null,null,null,null,null,null,"3-1.","劣化対策等級",null,null,null,null,null,null,null,null,null,"[1-3]",null,null,null,null,null,null,null,null,null,null,null,null,"□","外壁面、吹き抜け等の住戸外周部",null,null,null,null,null,null,null,null,null,null,null,null,null,null,null,null,null,null,null,null,null,null,null,null,null,null,null,null,null,null,null,null,null,null,null,null,null,null,null,null,null,null,null,null,null,null,null,null,null,null,null,null,null,null,null,null,null,null,null,null,null,null,null,null,null,null,null,null,null,null,null,null,null,null,null,null,null,null,null,null,null,null,null,null,null,null,null,null,null,null,null,null,null,null,null,null,null,null,null,null,null,null,null,null,null,null,null,null,null,null,null,null,null,null,null,null,null,null,null,null,null,null,null,null,null,null,null,null,null,null,null,null,null,null,null,null,null,"1.3 免震構造物 その他","〃",{"$f":"IF(work_tower_N01_3=マスターシート!C5, \"○\", \"\")","v":""}]
[null,null,null,null,null,null,null,null,null,null,null,null,null,null,null,null,null,"1-5.",null,"耐積雪等級",null,null,null,null,null,null,"[0-2]",null,null,null,null,null,null,"杭状改良地盤の許容支持力",null,null,null,null,null,{"$f":"IF(AO11=\"\",\"□\",\"■\")","v":"□"},null,null,null,null,null,null,"kN/本",null,null,null,null,null,null,null,null,"杭径",null,null,null,null,null,null,null,null,null,null,"cm",null,null,null,null,null,null,null,null,null,null,null,null,null,null,null,null,null,null,null,null,null,null,null,null,null,null,null,null,null,null,null,null,null,null,"□","バルコニー",null,null,null,null,null,null,null,null,null,null,null,null,null,null,null,null,null,null,null,null,null,null,null,null,null,null,null,null,null,null,null,null,null,null,null,null,null,null,null,null,null,null,null,null,null,null,null,null,null,null,null,null,null,null,null,null,null,null,null,null,null,null,null,null,null,null,null,null,null,null,null,null,null,null,null,null,null,null,null,null,null,null,null,null,null,null,null,null,null,null,null,null,null,null,null,null,null,null,null,null,null,null,null,null,null,null,null,null,null,null,null,null,null,null,null,null,null,null,null,null,null,null,null,null,null,null,null,null,null,null,null,null,null,null,null,null,null,"1.6 地盤調査方法等","〃",{"$f":"work_tower_N01_6_JIBAN_TYOUSA_1 & work_tower_N01_6_JIBAN_TYOUSA_2 & work_tower_N01_6_JIBAN_TYOUSA_3 & work_tower_N01_6_JIBAN_TYOUSA_4","v":""}]
[null,null,null,null,null,null,null,null,null,null,null,null,null,null,null,null,null,null,null,null,null,null,null,null,null,null,null,null,null,null,null,null,null,"地盤調査方法等",null,null,null,null,null,null,null,null,null,null,null,null,null,null,null,null,null,null,null,null,null,"杭長",null,null,null,null,null,null,null,null,null,null,"ｍ",null,null,null,null,null,null,null,null,null,null,null,null,null,null,null,null,null,null,null,null,null,null,null,null,null,null,null,null,null,null,null,null,null,null,"□","住戸専用部",null,null,null,null,null,null,null,null,null,null,null,null,null,null,null,null,null,null,null,null,null,null,null,null,null,null,null,null,null,null,null,null,null,null,null,null,null,null,null,null,null,null,null,null,null,null,null,null,null,null,null,null,null,null,null,null,null,null,null,null,null,null,null,null,null,null,null,null,null,null,null,null,null,null,null,null,null,null,null,null,null,null,null,null,null,null,null,null,null,null,null,null,null,null,null,null,null,null,null,null,null,null,null,null,null,null,null,null,null,null,null,null,null,null,null,null,null,null,null,null,null,null,null,null,null,null,null,null,null,null,null,null,null,null,null,null,null,"1.7 杭径","〃",{"$f":"IF(work_tower_N01_7_KUI_KEI_max <> \"\", work_tower_N01_7_KUI_KEI_max, \"\") & IF(work_tower_N01_7_KUI_KEI_max <> \"\", IF(work_tower_N01_7_KUI_KEI_max <> \"\", \" \", \"\"), \"\") & IF(work_tower_N01_7_KUI_KEI_min <> \"\", work_tower_N01_7_KUI_KEI_min, \"\")","v":""},{"$f":"IF(work_tower_N01_7_KUI_KEI_max <> \"\", \"最大値：\" & work_tower_N01_7_KUI_KEI_max, \"\") & IF(work_tower_N01_7_KUI_KEI_max <> \"\", IF(work_tower_N01_7_KUI_KEI_max <> \"\", \" \", \"\"), \"\") & IF(work_tower_N01_7_KUI_KEI_min <> \"\", \"最小値：\" & work_tower_N01_7_KUI_KEI_min, \"\")","v":""}]
[null,null,null,null,null,null,null,null,null,null,null,null,null,null,null,null,null,null,null,null,null,null,null,null,null,null,null,null,null,null,null,null,null,null,null,null,null,null,null,null,null,null,null,null,null,null,null,null,null,null,null,null,null,null,null,null,null,null,null,null,null,null,null,null,null,null,null,null,null,null,null,null,null,null,null,null,null,null,null,null,null,null,null,null,null,null,null,null,null,null,null,null,null,null,null,null,null,null,null,null,null,"□","その他",null,null,null,null,null,null,null,null,null,null,null,null,null,null,null,null,null,null,null,null,null,null,null,null,null,null,null,null,null,null,null,null,null,null,null,null,null,null,null,null,null,null,null,null,null,null,null,null,null,null,null,null,null,null,null,null,null,null,null,null,null,null,null,null,null,null,null,null,null,null,null,null,null,null,null,null,null,null,null,null,null,null,null,null,null,null,null,null,null,null,null,null,null,null,null,null,null,null,null,null,null,null,null,null,null,null,null,null,null,null,null,null,null,null,null,null,null,null,null,null,null,null,null,null,null,null,null,null,null,null,null,null,null,null,null,null,null,"1.7 杭長","〃",{"$f":"IF(work_tower_N01_7_KUI_TYOU_max <> \"\", work_tower_N01_7_KUI_TYOU_max, \"\") & IF(work_tower_N01_7_KUI_TYOU_max <> \"\", IF(work_tower_N01_7_KUI_TYOU_min <> \"\", \" \", \"\"), \"\") & IF(work_tower_N01_7_KUI_TYOU_min <> \"\", work_tower_N01_7_KUI_TYOU_min, \"\")","v":""},{"$f":"IF(work_tower_N01_7_KUI_TYOU_max <> \"\", \"最大値：\" & work_tower_N01_7_KUI_TYOU_max, \"\") & IF(work_tower_N01_7_KUI_TYOU_max <> \"\", IF(work_tower_N01_7_KUI_TYOU_min <> \"\", \" \", \"\"), \"\") & IF(work_tower_N01_7_KUI_TYOU_min <> \"\", \"最小値：\" & work_tower_N01_7_KUI_TYOU_min, \"\")","v":""}]
[null,null,null,null,null,null,null,null,null,null,null,null,null,null,null,null,null,null,null,null,null,null,null,null,null,null,null,null,null,null,null,null,null,"地盤改良方法",null,null,null,null,null,null,null,null,null,null,null,null,null,null,null,null,null,null,null,null,null,null,null,null,null,null,null,null,null,null,null,null,null,null,null,null,null,null,null,null,null,null,null,null,null,null,null,null,null,null,null,null,null,null,null,null,null,null,null,null,null,"その他備考",null,null,null,null,null,""]
[]
[null,null,null,null,null,null,null,null,null,null,null,null,null,null,null,null,null,null,null,null,null,null,null,null,null,null,null,null,null,null,null,null,null,null,null,null,null,null,null,null,null,null,null,null,null,null,null,null,null,null,null,null,null,null,null,null,null,null,null,null,null,"※その２：メゾネットの場合",null,null,null,null,null,null,null,null,null,null,null,null,null,null,null,null,null,null,null,null,null,null,null,null,null,null,null,null,null,null,null,null,null,null,null,null,null,null,null,null,null,null,null,null,null,null,"※方位別開口比の値が100の場合には、[%以上]を[%]と読み替える。",null,null,null,null,null,null,null,null,null,null,null,null,null,null,null,null,null,null,"相当スラブ厚：0:該当なし　a:27cm以上　b:20cm以上　c:15cm以上　d:11cm以上　e:その他"]
["（住戸部分）",null,null,null,null,null,null,null,null,null,null,null,null,null,null,null,null,null,null,null,null,null,null,null,null,null,null,null,null,null,null,null,null,null,null,null,null,null,null,null,null,null,null,null,null,null,null,null,null,null,null,null,null,null,null,null,null,null,null,null,null,null,null,null,null,null,null,null,null,null,null,null,null,null,null,null,null,null,null,null,null,null,null,null,null,null,null,null,null,null,null,null,null,null,null,null,null,null,null,null,null,null,null,null,null,null,null,null,"※方位別開口比の値が[-]の場合には、[0%]と読み替える。",null,null,null,null,null,null,null,null,null,null,null,null,null,null,null,null,null,null,"レベル低減量：0:該当なし　a:30db　b:25db　c:20db　d:15db　e:その他"]
["通し番号","住戸番号　新",null,"住戸番号",null,"階",null,"タイプ",null,"居室の床面積",null,"専有部分の面積",null,"バルコニー等専用使用部分の面積",null,"合計床面積",null,"住戸への経路（共用階段）","住戸への経路（共用廊下）","住戸への経路（エレベーター）","界壁","界床",null,null,"2.火災時の安全",null,null,null,null,null,null,null,null,null,null,null,null,null,null,null,null,null,null,null,null,null,"4.維持管理・更新対策",null,null,null,null,null,null,null,null,null,null,null,null,null,null,null,null,null,null,null,null,null,null,null,null,null,null,null,"5.温熱",null,null,null,null,null,null,null,null,null,null,null,null,null,null,"6.空気環境",null,null,null,null,null,null,null,null,null,null,null,null,null,null,null,null,null,null,null,null,null,"7.光・視環境",null,null,null,null,null,"　8.音環境",null,null,null,null,null,null,null,null,null,null,null,null,null,null,null,null,null,null,null,null,null,null,null,null,null,null,null,null,"9.高齢",null,"10.防犯",null,null,null,null,null,null,null,null,null,null,null,null,null,null,null,null,null,null,null,null,null,"10.防犯"]
[null,null,null,null,null,null,null,null,null,null,null,null,null,null,null,null,null,null,null,null,null,null,null,null,1,2,"3.避難安全対策",null,null,null,null,null,null,null,null,null,"4.脱出対策",null,null,null,null,null,null,null,null,7,1,"4.更新対策",null,null,null,null,null,null,null,null,null,null,null,null,null,null,null,null,null,null,null,null,null,null,null,null,null,null,1,null,null,null,null,null,2,null,null,null,null,null,null,null,null,"1.ホルムアルデヒドﾞ対策",null,null,null,null,"2.換気対策",null,null,null,null,null,null,null,null,null,null,null,null,null,null,null,null,1,"2.方位別開口比",null,null,null,null,"1.重量床衝撃音対策",null,null,null,null,null,null,null,null,null,null,null,null,"2．軽量床衝撃音対策",null,null,null,null,null,null,null,null,null,null,"透過損失等級",null,null,null,null,1,2,"建物出入り口の階",null,null,null,null,null,null,null,null,null,null,"建物出入り口の以外の階",null,null,null,null,null,null,null,null,null,null,"1.開口部の侵入防止対策（３）",null,null,null,null,null,null,null,null,null,null,"1.開口部の侵入防止対策（４）"]
[null,null,null,null,null,null,null,null,null,null,null,null,null,null,null,null,null,null,null,null,null,null,null,null,"感知警報装置（自住戸）","感知警報装置（他住戸）","該当なし","排煙形式",null,null,null,null,"平面形状",null,null,"隔壁開口部等級","該当なし","直通バルコニー","隣戸バルコニー","避難器具",null,null,"その他",null,null,"界壁及び界床","維持管理（専用配管）","該当なし","（その１）",null,null,null,null,null,null,null,null,"（その２）",null,null,null,null,null,null,null,null,"間取りの変更の障害",null,"計算方法",null,null,null,"省エネルギー対策",null,"断熱等性能",null,null,null,null,null,"一次エネルギー消費量",null,null,null,null,null,null,null,null,"使用建材",null,null,"等級",null,"居室",null,null,null,null,"便所",null,null,null,"浴室",null,null,null,"台所",null,null,null,"単純開口率","北","東","南","西","真上","対策等級・相当スラブ厚の区別",null,null,null,"対策等級",null,null,null,"相当スラブ厚",null,null,null,"対策等級・レベル低減量の区別",null,null,null,"対策等級",null,null,null,"ﾚﾍﾞﾙ低減量",null,null,null,3,"4.外壁開口部",null,null,null,"高齢者等配慮(専用部分)","高齢者等配慮(共用部分)","住戸位置",null,null,"a",null,"b",null,"b",null,"c",null,"住戸位置",null,null,"a",null,"b(ⅰ)",null,"b(ⅱ)",null,"c",null,"住戸位置",null,null,"a",null,"b(ⅰ)",null,"b(ⅱ)",null,"c",null,"住戸位置",null,null,"a",null,"b(ⅰ)",null,"b(ⅱ)",null,"c",null,"2-1選択","2-2選択","2-3選択","2-4選択","2-7選択","4-1選択","4-4選択","5-1選択","5-2選択","6-1選択","6-2選択","7-1選択","7-2選択","8-1選択","対策等級",null,null,null,"相当スラブ厚",null,null,null,"8-2選択","対策等級",null,null,null,"ﾚﾍﾞﾙ低減量",null,null,null,"8-3選択","8-4選択","9-1選択","9-2選択","10-1選択","前処理（出入り口","前処理（開口部（共用部等）","前処理（開口部（バルコニー等）","前処理（その他開口部","存する階　開口部bの処理",null,null,null,null,null,null,null,null,null,null,null,"※通常非表示読込項目"]
[null,null,null,null,null,null,null,null,null,null,null,null,null,null,null,null,null,null,null,null,null,null,null,null,null,null,null,null,null,null,null,null,null,null,null,null,null,null,null,null,"種類",null,null,"種類",null,null,null,null,"地上･地下･その他","階","躯体天井高",null,"最も低い部分",null,null,null,null,"地上･地下･その他","階","躯体天井高",null,"最も低い部分",null,null,null,null,null,null,null,null,null,null,null,null,null,null,"外皮平均熱貫流率",null,"冷房期の平均日射熱取得率",null,null,null,"床面積当たりの設計一次エネルギー消費量",null,null,"一次エネルギー\n消費量の削減率",null,null,null,"製材等","特定建材","その他","内装材","天井裏等","機械換気","その他","その他内容",null,null,"該当なし","機械換気設備","換気のできる窓","なし","該当なし","機械換気設備","換気のできる窓","なし","該当なし","機械換気設備","換気のできる窓","なし",null,null,null,null,null,null,null,null,null,null,"上階",null,"下階",null,"上階",null,"下階",null,null,null,null,null,"上階",null,"下階",null,"上階",null,"下階",null,"界壁","北","東","南","西",null,null,"建物出入口の存する階","地下･地上･屋上","階数","出入口",null,"開口部（共用部等）",null,"開口部（バルコニー等）",null,"その他開口部",null,"建物出入口の存する階","地下･地上･屋上","階数","出入口",null,"開口部（共用部等）",null,"開口部（バルコニー等）",null,"その他開口部",null,"建物出入口の存する階","地下･地上･屋上","階数","出入口",null,"開口部（共用部等）",null,"開口部（バルコニー等）",null,"その他開口部",null,"建物出入口の存する階","地下･地上･屋上","階数","出入口",null,"開口部（共用部等）",null,"開口部（バルコニー等）",null,"その他開口部",null,null,null,null,null,null,null,null,null,null,null,null,null,null,null,"上階",null,"下階",null,"上階",null,"下階",null,null,"上階",null,"下階",null,"上階",null,"下階",null,null,null,null,null,null,null,null,null,null,null,null,null,null,null,null,null,null,null,null,null,null,"住棟の選択・非選択のチェックボックスの作成場所（必須のチェックボックスも含む）"]
[null,null,null,null,null,null,null,null,null,null,null,null,null,null,null,null,null,null,null,null,null,null,null,null,null,null,null,null,null,null,null,null,null,null,null,null,null,null,null,null,null,null,null,null,null,null,null,null,null,null,null,null,"部位",null,null,"内法高さ",null,null,null,null,null,"部位",null,null,"内法高さ",null,null,null,null,null,null,null,null,null,null,null,null,null,null,null,null,null,null,null,null,null,null,null,null,null,null,null,null,null,null,null,null,null,null,null,null,null,null,null,null,null,null,null,null,null,null,null,null,null,null,null,null,null,null,null,null,"最高","最低","最高","最低","最高","最低","最高","最低",null,null,null,null,"最高","最低","最高","最低","最高","最低","最高","最低",null,null,null,null,null,null,null,null,null,null,null,null,null,null,null,null,null,null,null,null,null,null,null,null,null,null,null,null,null,null,null,null,null,null,null,null,null,null,null,null,null,null,null,null,null,null,null,null,null,null,null,null,null,null,null,null,null,null,null,null,null,null,null,null,null,"最高","最低","最高","最低","最高","最低","最高","最低",null,"最高","最低","最高","最低","最高","最低","最高","最低",null,null,null,null,null,null,null,null,null,null,null,null,null,null,null,null,null,null,null,null,null,1,"1-1.",null,{"$f":"IF(OR(CL7=\"\"),\"\",1)","v":""},"2-5."]
[null,null,null,null,null,null,null,null,null,null,null,null,null,null,null,null,null,null,null,null,null,null,null,null,null,null,null,null,null,null,null,null,null,null,null,null,null,null,null,null,null,null,null,null,null,null,null,null,null,null,null,null,null,null,null,null,null,null,null,null,null,null,null,null,null,null,null,null,null,null,null,null,null,null,null,null,null,null,null,null,null,null,null,null,null,null,null,null,null,null,null,null,null,null,null,null,null,null,null,null,null,null,null,null,null,null,null,null,null,null,null,null,null,null,null,null,null,null,null,null,null,null,null,null,null,null,null,null,null,null,null,null,null,null,null,null,null,null,null,null,null,null,null,null,null,null,null,null,null,null,null,null,null,null,null,null,null,null,null,null,null,null,null,null,null,null,null,null,null,null,null,null,null,null,null,null,null,null,null,null,null,null,null,null,null,null,null,null,null,null,null,null,null,null,null,null,null,null,null,null,null,null,null,null,null,null,null,null,null,null,null,null,null,null,null,null,null,null,null,null,null,null,null,null,null,null,null,null,null,null,null,null,null,null,null,null,null,null,null,null,null,null,null,null,{"$f":"IF(OR(AB8=\"\"),\"\",1)","v":""},"1-2.",null,{"$f":"IF(OR(CL8=\"\"),\"\",1)","v":""},"2-6."]
[null,null,null,null,null,null,null,null,null,null,null,null,null,null,null,null,null,null,null,null,null,null,null,null,null,null,null,null,null,null,null,null,null,null,null,null,null,null,null,null,null,null,null,null,null,null,null,null,null,null,null,null,null,null,null,null,null,null,null,null,null,null,null,null,null,null,null,null,null,null,null,null,null,null,null,null,null,null,null,null,null,null,null,null,null,null,null,null,null,null,null,null,null,null,null,null,null,null,null,null,null,null,null,null,null,null,null,null,null,null,null,null,null,null,null,null,null,null,null,null,null,null,null,null,null,null,null,null,null,null,null,null,null,null,null,null,null,null,null,null,null,null,null,null,null,null,null,null,null,null,null,null,null,null,null,null,null,null,null,null,null,null,null,null,null,null,null,null,null,null,null,null,null,null,null,null,null,null,null,null,null,null,null,null,null,null,null,null,null,null,null,null,null,null,null,null,null,null,null,null,null,null,null,null,null,null,null,null,null,null,null,null,null,null,null,null,null,null,null,null,null,null,null,null,null,null,null,null,null,null,null,null,null,null,null,null,null,null,null,null,null,null,null,null,1,"1-3."]
[null,null,null,null,null,null,null,null,null,null,null,null,null,null,null,null,null,null,null,null,null,null,null,null,null,null,null,null,null,null,null,null,null,null,null,null,null,null,null,null,null,null,null,null,null,null,null,null,null,null,null,null,null,null,null,null,null,null,null,null,null,null,null,null,null,null,null,null,null,null,null,null,null,null,null,null,null,null,null,null,null,"[145678]",null,null,null,null,null,null,null,null,null,null,null,null,null,null,null,null,null,null,null,null,null,null,null,null,null,null,null,null,null,null,null,null,null,null,null,null,null,null,null,null,null,null,null,null,null,null,null,null,null,null,null,null,null,null,null,null,null,null,null,null,null,null,null,null,null,null,null,null,null,null,null,null,null,null,null,null,null,null,null,null,null,null,null,null,null,null,null,null,null,null,null,null,null,null,null,null,null,null,null,null,null,null,null,null,null,null,null,null,null,null,null,null,null,null,null,null,null,null,null,null,null,null,null,null,null,null,null,null,null,null,null,null,null,null,null,null,null,null,null,null,null,null,null,null,null,null,null,null,null,null,null,null,null,null,null,null,null,null,null,null,null,null,{"$f":"IF(OR(AB10=\"\"),\"\",1)","v":""},"1-4.",null,1,"3-1."]
[null,null,null,null,null,null,null,null,null,null,null,null,null,null,null,null,null,null,null,null,null,null,null,null,null,null,null,null,null,null,null,null,null,null,null,null,null,null,null,null,null,null,null,null,null,null,null,null,null,null,null,null,null,null,null,null,null,null,null,null,null,null,null,null,null,null,null,null,null,null,null,null,null,null,null,null,null,null,null,null,null,null,null,null,null,null,null,null,null,null,null,null,null,null,null,null,null,null,null,null,null,null,null,null,null,null,null,null,null,null,null,null,null,null,null,null,null,null,null,null,null,null,null,null,null,null,null,null,null,null,null,null,null,null,null,null,null,null,null,null,null,null,null,null,null,null,null,null,null,null,null,null,null,null,null,null,null,null,null,null,null,null,null,null,null,null,null,null,null,null,null,null,null,null,null,null,null,null,null,null,null,null,null,null,null,null,null,null,null,null,null,null,null,null,null,null,null,null,null,null,null,null,null,null,null,null,null,null,null,null,null,null,null,null,null,null,null,null,null,null,null,null,null,null,null,null,null,null,null,null,null,null,null,null,null,null,null,null,null,null,null,null,null,null,{"$f":"IF(OR(AB11=\"\",AB11=0),\"\",1)","v":""},"1-5."]
[null,null,null,null,null,null,null,null,null,null,null,null,null,null,null,null,null,null,null,null,null,null,null,null,null,null,null,null,null,null,null,null,null,null,null,null,null,null,null,null,null,null,null,null,null,null,null,null,null,null,null,null,null,null,null,null,null,null,null,null,null,null,null,null,null,null,null,null,null,null,null,null,null,null,null,null,null,null,null,null,null,null,null,null,null,null,null,null,null,null,null,null,null,null,null,null,null,null,null,null,null,null,null,null,null,null,null,null,null,null,null,null,null,null,null,null,null,null,null,null,null,null,null,null,null,null,null,null,null,null,null,null,null,null,null,null,null,null,null,null,null,null,null,null,null,null,null,null,null,null,null,null,null,null,null,null,null,null,null,null,null,null,null,null,null,null,null,null,null,null,null,null,null,null,null,null,null,null,null,null,null,null,null,null,null,null,null,null,null,null,null,null,null,null,null,null,null,null,null,null,null,null,null,null,null,null,null,null,null,null,null,null,null,null,null,null,null,null,null,null,null,null,null,null,null,null,null,null,null,null,null,null,null,null,null,null,null,null,null,null,null,null,null,null,1,"1-6.",null,{"$f":"IF(OR(DD7=\"\"),\"\",1)","v":""},"4-2."]
[null,null,null,null,null,null,null,null,null,null,null,null,null,null,null,null,null,null,null,null,null,null,null,null,null,null,null,null,null,null,null,null,null,null,null,null,null,null,null,null,null,null,null,null,null,null,null,null,null,null,null,null,null,null,null,null,null,null,null,null,null,null,null,null,null,null,null,null,null,null,null,null,null,null,null,null,null,null,null,null,null,null,null,null,null,"売電率を\n含む",null,"売電率を\n含まない",null,null,null,null,null,null,null,null,null,null,null,null,null,null,null,null,null,null,null,null,null,null,null,null,null,null,null,null,null,null,null,null,null,null,null,null,null,null,null,null,null,null,null,null,null,null,null,null,null,null,null,null,null,null,null,null,null,null,null,null,null,null,null,null,null,null,null,null,null,null,null,null,null,null,null,null,null,null,null,null,null,null,null,null,null,null,null,null,null,null,null,null,null,null,null,null,null,null,null,null,null,null,null,null,null,null,null,null,null,null,null,null,null,null,null,null,null,null,null,null,null,null,null,null,null,null,null,null,null,null,null,null,null,null,null,null,null,null,null,null,null,null,null,null,null,null,null,null,null,null,null,null,null,null,null,null,1,"1-7.",null,{"$f":"IF(OR(DD8=\"\"),\"\",1)","v":""},"4-3."]
[null,null,null,null,null,null,null,null,null,null,null,null,null,null,null,null,null,null,null,null,null,null,null,null,null,null,null,null,null,null,null,null,null,null,null,null,null,null,null,null,null,null,null,null,null,null,null,null,null,null,null,null,null,null,null,null,null,null,null,null,null,null,null,null,null,null,null,null,null,null,null,null,null,null,null,null,null,null,null,null,null,null,null,null,null,null,null,null,null,null,null,null,null,null,null,null,null,null,null,null,null,null,null,null,null,null,null,null,null,null,null,null,null,null,null,null,null,null,null,null,null,null,null,null,null,"[0a|e]","[0a|e]","[0a|e]","[0a|e]",null,null,null,null,null,null,null,null,"[0a|e]","[0a|e]","[0a|e]","[0a|e]",null,null,null,null,null,null,null,null,null,null,null,null,null,null,null,null,null,null,null,null,null,null,null,null,null,null,null,null,null,null,null,null,null,null,null,null,null,null,null,null,null,null,null,null,null,null,null,null,null,null,null,null,null,null,null,null,null,null,null,null,null,null,null,null,null,null,null,null,null,"[0a|e]","[0a|e]","[0a|e]","[0a|e]",null,null,null,null,null,"[0a|e]","[0a|e]","[0a|e]","[0a|e]"]
[null,null,null,null,null,null,null,null,null,null,null,null,null,null,null,null,null,null,null,null,null,null,null,null,"[1|4]","[0|4]",null,null,null,null,null,null,null,null,null,"[1|3]",null,null,null,null,null,null,null,null,null,"[0|4]","[0|3]",null,null,null,null,null,null,null,null,null,null,null,null,null,null,null,null,null,null,null,null,null,null,null,null,null,"地域区分","[1|4]","地域区分","[1|7]",null,null,null,null,"地域区分",null,null,null,null,null,null,null,null,null,null,null,"[0|3]","[023]",null,null,null,null,null,null,null,null,null,null,null,null,null,null,null,null,null,"％以上","％以上","％以上","％以上","％以上","％以上",null,null,null,null,"[0|5]","[0|5]","[0|5]","[0|5]",null,null,null,null,null,null,null,null,"[0|5]","[0|5]","[0|5]","[0|5]",null,null,null,null,"[0|4]","[0|3]","[0|3]","[0|3]","[0|3]","[1|5]","[0|5]",null,null,null,null,null,null,null,null,null,null,null,null,null,null,null,null,null,null,null,null,null,null,null,null,null,null,null,null,null,null,null,null,null,null,null,null,null,null,null,null,null,null,null,null,null,null,null,null,null,null,null,null,null,null,null,null,null,null,"[0|5]","[0|5]","[0|5]","[0|5]",null,null,null,null,null,"[0|5]","[0|5]","[0|5]","[0|5]"]
[]
[null,null,null,null,null,null,null,null,null,null,null,null,null,null,null,null,null,null,null,null,null,null,null,null,null,null,null,null,null,null,null,null,null,null,null,null,null,null,null,null,null,null,null,null,null,null,null,null,null,null,null,null,null,null,null,null,null,null,null,null,null,null,null,null,null,null,null,null,null,null,null,null,null,null,null,null,"ＵＡ",null,"ηＡ",null,null,null,"MJ/㎡・年"]
[null,null,null,null,null,null,null,null,null,null,null,null,null,null,null,null,null,null,null,null,null,null,null,null,null,null,null,null,null,null,null,null,null,null,null,null,null,null,null,null,null,null,null,null,null,null,null,null,null,null,null,null,null,null,null,null,null,null,null,null,null,null,null,null,null,null,null,null,null,null,null,null,null,null,null,null,null,null,null,null,null,null,null,null,null,"%"]
[{"$f":" ROW(A34) - ROW(_row) + 1","v":0},null,null,{"$f":"IF(B34=\"\",\"\",B34)","v":""},null,null,null,null,null,null,null,null,null,null,null,null,null,null,null,null,null,null,null,null,null,null,null,null,null,null,null,null,null,null,null,null,null,null,null,null,null,null,null,null,null,null,null,null,null,{"$f":"IF(GQ34=1,IF(F34=\"\",\"\",F34),\"\")","v":""},null,null,null,null,null,null,null,null,null,null,null,null,null,null,null,null,null,null,null,null,null,null,null,null,null,null,null,null,null,null,null,null,null,null,null,null,null,null,null,null,null,null,null,null,null,null,null,null,null,null,null,null,null,null,null,null,null,null,null,null,null,null,null,null,null,null,null,null,null,null,null,null,null,null,null,null,null,null,null,null,null,null,null,null,null,null,null,null,null,null,null,null,null,null,null,null,null,null,null,null,{"$f":"IF(F34=\"\",\"\",F34)","v":""},null,null,null,null,null,null,null,null,null,null,{"$f":"IF(OR(IF(OR(FG34=\"\",FG34=\"無し\"),\"\",1)=1,IF(OR(FI34=\"\",FI34=\"無し\"),\"\",1)=1,IF(OR(FK34=\"\",FK34=\"無し\"),\"\",1)=1,IF(OR(FM34=\"\",FM34=\"無し\"),\"\",1)=1),IF(F34=\"\",\"\",F34),\"\")","v":""},null,null,null,null,null,null,null,null,null,null,{"$f":"IF(OR(IF(OR(FR34=\"\",FR34=\"無し\"),\"\",1)=1,IF(OR(FT34=\"\",FT34=\"無し\"),\"\",1)=1,IF(OR(FV34=\"\",FV34=\"無し\"),\"\",1)=1,IF(OR(FX34=\"\",FX34=\"無し\"),\"\",1)=1),IF(F34=\"\",\"\",F34),\"\")","v":""},null,null,null,null,null,null,null,null,null,null,{"$f":"IF(OR(IF(OR(GC34=\"\",GC34=\"無し\"),\"\",1)=1,IF(OR(GE34=\"\",GE34=\"無し\"),\"\",1)=1,IF(OR(GG34=\"\",GG34=\"無し\"),\"\",1)=1,IF(OR(GI34=\"\",GI34=\"無し\"),\"\",1)=1),IF(F34=\"\",\"\",F34),\"\")","v":""},null,null,null,null,null,null,null,null,{"$f":"IF(Y34<>\"\",1,\"\")","v":""},{"$f":"IF(Z34<>\"\",1,\"\")","v":""},{"$f":"IF(OR(AA34=\"○\",AB34<>\"\",AG34<>\"\",AJ34<>\"\"),1,\"\")","v":""},{"$f":"IF(OR(AK34=\"○\",AL34=\"○\",AM34=\"○\",AN34=\"○\",AQ34=\"○\"),1,\"\")","v":""},{"$f":"IF(AT34<>\"\",1,\"\")","v":""},1,{"$f":"IF(OR(AV34=\"○\",AY34<>\"\",BA34=\"はり\",BA34=\"傾斜屋根\",BA34=\"その他\",BD34<>\"\"),1,\"\")","v":""},1,1,{"$f":"IF(OR(CL34=\"○\",CM34=\"○\",CN34=\"○\",CO34=1,CO34=2,CO34=3,CP34=1,CP34=2,CP34=3),1,\"\")","v":""},{"$f":"IF(OR(CQ34=\"○\",CR34=\"○\",CW34=\"○\",CX34=\"○\",DA34=\"○\",DB34=\"○\",DE34=\"○\",DF34=\"○\"),1,\"\")","v":""},{"$f":"IF(DH34=\"\",\"\",1)","v":""},{"$f":"IF(OR(DI34<>\"\",DJ34<>\"\",DK34<>\"\",DL34<>\"\",DM34<>\"\"),1,\"\")","v":""},{"$f":"IF(OR(GY34=1,GZ34=1,HA34=1,HB34=1,HC34=1,HD34=1,HE34=1,HF34=1),\"○\",\"\")","v":""},{"$f":"IF(OR(DR34=\"\",DR34=0),\"\",1)","v":""},{"$f":"IF(OR(DS34=\"\",DS34=0),\"\",1)","v":""},{"$f":"IF(OR(DT34=\"\",DT34=0),\"\",1)","v":""},{"$f":"IF(OR(DU34=\"\",DU34=0),\"\",1)","v":""},{"$f":"IF(OR(DV34=\"\",DV34=0),\"\",1)","v":""},{"$f":"IF(OR(DW34=\"\",DW34=0),\"\",1)","v":""},{"$f":"IF(OR(DX34=\"\",DX34=0),\"\",1)","v":""},{"$f":"IF(OR(DY34=\"\",DY34=0),\"\",1)","v":""},{"$f":"IF(OR(HH34=1,HI34=1,HJ34=1,HK34=1,HM34=1,HL34=1,HN34=1,HO34=1),\"○\",\"\")","v":""},{"$f":"IF(OR(ED34=\"\",ED34=0),\"\",1)","v":""},{"$f":"IF(OR(EE34=\"\",EE34=0),\"\",1)","v":""},{"$f":"IF(OR(EF34=\"\",EF34=0),\"\",1)","v":""},{"$f":"IF(OR(EG34=\"\",EG34=0),\"\",1)","v":""},{"$f":"IF(OR(EH34=\"\",EH34=0),\"\",1)","v":""},{"$f":"IF(OR(EI34=\"\",EI34=0),\"\",1)","v":""},{"$f":"IF(OR(EJ34=\"\",EJ34=0),\"\",1)","v":""},{"$f":"IF(OR(EK34=\"\",EK34=0),\"\",1)","v":""},{"$f":"IF(OR(EL34=4,EL34=3,EL34=2,EL34=1),\"○\",\"\")","v":""},{"$f":"IF(OR(EM34=1,EM34=2,EM34=3),\"○\",IF(OR(EN34=1,EN34=2,EN34=3),\"○\",IF(OR(EO34=1,EO34=2,EO34=3),\"○\",IF(OR(EP34=1,EP34=2,EP34=3),\"○\",\"\"))))","v":""},{"$f":"IF(EQ34=\"\",\"\",1)","v":""},{"$f":"IF(OR(ER34=\"\"),\"\",1)","v":""},{"$f":"IF(OR(HU34=1,HV34=1,HW34=1,HX34=1),1,\"\")","v":""},{"$f":"IF(AND(OR(EV34=\"\",EV34=\"無し\"),OR(FG34=\"\",FG34=\"無し\")),\"\",1)","v":""},{"$f":"IF(AND(OR(EX34=\"\",EX34=\"無し\"),OR(FI34=\"\",FI34=\"無し\")),\"\",1)","v":""},{"$f":"IF(OR(FK34=\"\",FK34=\"無し\"),\"\",1)","v":""},{"$f":"IF(AND(OR(FB34=\"\",FB34=\"無し\"),OR(FM34=\"\",FM34=\"無し\")),\"\",1)","v":""},{"$f":"IF(AND(EZ34=\"\",EX34=\"\"),\"\",IF(EZ34=\"無し\",EX34,IF(EX34=\"無し\",EZ34,IF(AND(EZ34=\"有効\",EX34<>\"有効\"),EX34,IF(AND(EZ34=\"シャッター\",EX34=\"その他\"),EX34,EZ34)))))","v":""}]
[1,null,null,{"$f":"IF(B35=\"\",\"\",B35)","v":""},null,null,null,null,null,null,null,null,null,null,null,null,null,null,null,null,null,null,null,null,null,null,null,null,null,null,null,null,null,null,null,null,null,null,null,null,null,null,null,null,null,null,null,null,null,"",null,null,null,null,null,null,null,null,null,null,null,null,null,null,null,null,null,null,null,null,null,null,null,null,null,null,null,null,null,null,null,null,null,null,null,null,null,null,null,null,null,null,null,null,null,null,null,null,null,null,null,null,null,null,null,null,null,null,null,null,null,null,null,null,null,null,null,null,null,null,null,null,null,null,null,null,null,null,null,null,null,null,null,null,null,null,null,null,null,null,null,null,null,null,null,null,null,null,null,null,"",null,null,null,null,null,null,null,null,null,null,"",null,null,null,null,null,null,null,null,null,null,"",null,null,null,null,null,null,null,null,null,null,"",null,null,null,null,null,null,null,null,"","","","","",1,"",1,1,{"$f":"IF(OR(CL35=\"○\",CM35=\"○\",CN35=\"○\",CO35=1,CO35=2,CO35=3,CP35=1,CP35=2,CP35=3),1,\"\")","v":""},{"$f":"IF(OR(CQ35=\"○\",CR35=\"○\",CW35=\"○\",CX35=\"○\",DA35=\"○\",DB35=\"○\",DE35=\"○\",DF35=\"○\"),1,\"\")","v":""},{"$f":"IF(DH35=\"\",\"\",1)","v":""},{"$f":"IF(OR(DI35<>\"\",DJ35<>\"\",DK35<>\"\",DL35<>\"\",DM35<>\"\"),1,\"\")","v":""},{"$f":"IF(OR(GY35=1,GZ35=1,HA35=1,HB35=1,HC35=1,HD35=1,HE35=1,HF35=1),\"○\",\"\")","v":""},{"$f":"IF(OR(DR35=\"\",DR35=0),\"\",1)","v":""},"","","","","","","",{"$f":"IF(OR(HH35=1,HI35=1,HJ35=1,HK35=1,HM35=1,HL35=1,HN35=1,HO35=1),\"○\",\"\")","v":""},{"$f":"IF(OR(ED35=\"\",ED35=0),\"\",1)","v":""},{"$f":"IF(OR(EE35=\"\",EE35=0),\"\",1)","v":""},"","","","","","",{"$f":"IF(OR(EL35=4,EL35=3,EL35=2,EL35=1),\"○\",\"\")","v":""},{"$f":"IF(OR(EM35=1,EM35=2,EM35=3),\"○\",IF(OR(EN35=1,EN35=2,EN35=3),\"○\",IF(OR(EO35=1,EO35=2,EO35=3),\"○\",IF(OR(EP35=1,EP35=2,EP35=3),\"○\",\"\"))))","v":""},{"$f":"IF(EQ35=\"\",\"\",1)","v":""},{"$f":"IF(OR(ER35=\"\"),\"\",1)","v":""},{"$f":"IF(OR(HU35=1,HV35=1,HW35=1,HX35=1),1,\"\")","v":""},{"$f":"IF(AND(OR(EV35=\"\",EV35=\"無し\"),OR(FG35=\"\",FG35=\"無し\")),\"\",1)","v":""},{"$f":"IF(AND(OR(EX35=\"\",EX35=\"無し\"),OR(FI35=\"\",FI35=\"無し\")),\"\",1)","v":""},{"$f":"IF(OR(FK35=\"\",FK35=\"無し\"),\"\",1)","v":""},{"$f":"IF(AND(OR(FB35=\"\",FB35=\"無し\"),OR(FM35=\"\",FM35=\"無し\")),\"\",1)","v":""},{"$f":"IF(AND(EZ35=\"\",EX35=\"\"),\"\",IF(EZ35=\"無し\",EX35,IF(EX35=\"無し\",EZ35,IF(AND(EZ35=\"有効\",EX35<>\"有効\"),EX35,IF(AND(EZ35=\"シャッター\",EX35=\"その他\"),EX35,EZ35)))))","v":""}]
[2,null,null,{"$f":"IF(B36=\"\",\"\",B36)","v":""},null,null,null,null,null,null,null,null,null,null,null,null,null,null,null,null,null,null,null,null,null,null,null,null,null,null,null,null,null,null,null,null,null,null,null,null,null,null,null,null,null,null,null,null,null,"",null,null,null,null,null,null,null,null,null,null,null,null,null,null,null,null,null,null,null,null,null,null,null,null,null,null,null,null,null,null,null,null,null,null,null,null,null,null,null,null,null,null,null,null,null,null,null,null,null,null,null,null,null,null,null,null,null,null,null,null,null,null,null,null,null,null,null,null,null,null,null,null,null,null,null,null,null,null,null,null,null,null,null,null,null,null,null,null,null,null,null,null,null,null,null,null,null,null,null,null,"",null,null,null,null,null,null,null,null,null,null,"",null,null,null,null,null,null,null,null,null,null,"",null,null,null,null,null,null,null,null,null,null,"",null,null,null,null,null,null,null,null,"","","","","",1,"",1,1,{"$f":"IF(OR(CL36=\"○\",CM36=\"○\",CN36=\"○\",CO36=1,CO36=2,CO36=3,CP36=1,CP36=2,CP36=3),1,\"\")","v":""},{"$f":"IF(OR(CQ36=\"○\",CR36=\"○\",CW36=\"○\",CX36=\"○\",DA36=\"○\",DB36=\"○\",DE36=\"○\",DF36=\"○\"),1,\"\")","v":""},{"$f":"IF(DH36=\"\",\"\",1)","v":""},{"$f":"IF(OR(DI36<>\"\",DJ36<>\"\",DK36<>\"\",DL36<>\"\",DM36<>\"\"),1,\"\")","v":""},{"$f":"IF(OR(GY36=1,GZ36=1,HA36=1,HB36=1,HC36=1,HD36=1,HE36=1,HF36=1),\"○\",\"\")","v":""},{"$f":"IF(OR(DR36=\"\",DR36=0),\"\",1)","v":""},{"$f":"IF(OR(DS36=\"\",DS36=0),\"\",1)","v":""},{"$f":"IF(OR(DT36=\"\",DT36=0),\"\",1)","v":""},{"$f":"IF(OR(DU36=\"\",DU36=0),\"\",1)","v":""},{"$f":"IF(OR(DV36=\"\",DV36=0),\"\",1)","v":""},{"$f":"IF(OR(DW36=\"\",DW36=0),\"\",1)","v":""},{"$f":"IF(OR(DX36=\"\",DX36=0),\"\",1)","v":""},{"$f":"IF(OR(DY36=\"\",DY36=0),\"\",1)","v":""},{"$f":"IF(OR(HH36=1,HI36=1,HJ36=1,HK36=1,HM36=1,HL36=1,HN36=1,HO36=1),\"○\",\"\")","v":""},{"$f":"IF(OR(ED36=\"\",ED36=0),\"\",1)","v":""},{"$f":"IF(OR(EE36=\"\",EE36=0),\"\",1)","v":""},{"$f":"IF(OR(EF36=\"\",EF36=0),\"\",1)","v":""},{"$f":"IF(OR(EG36=\"\",EG36=0),\"\",1)","v":""},{"$f":"IF(OR(EH36=\"\",EH36=0),\"\",1)","v":""},{"$f":"IF(OR(EI36=\"\",EI36=0),\"\",1)","v":""},{"$f":"IF(OR(EJ36=\"\",EJ36=0),\"\",1)","v":""},{"$f":"IF(OR(EK36=\"\",EK36=0),\"\",1)","v":""},{"$f":"IF(OR(EL36=4,EL36=3,EL36=2,EL36=1),\"○\",\"\")","v":""},{"$f":"IF(OR(EM36=1,EM36=2,EM36=3),\"○\",IF(OR(EN36=1,EN36=2,EN36=3),\"○\",IF(OR(EO36=1,EO36=2,EO36=3),\"○\",IF(OR(EP36=1,EP36=2,EP36=3),\"○\",\"\"))))","v":""},{"$f":"IF(EQ36=\"\",\"\",1)","v":""},{"$f":"IF(OR(ER36=\"\"),\"\",1)","v":""},{"$f":"IF(OR(HU36=1,HV36=1,HW36=1,HX36=1),1,\"\")","v":""},{"$f":"IF(AND(OR(EV36=\"\",EV36=\"無し\"),OR(FG36=\"\",FG36=\"無し\")),\"\",1)","v":""},{"$f":"IF(AND(OR(EX36=\"\",EX36=\"無し\"),OR(FI36=\"\",FI36=\"無し\")),\"\",1)","v":""},{"$f":"IF(OR(FK36=\"\",FK36=\"無し\"),\"\",1)","v":""},{"$f":"IF(AND(OR(FB36=\"\",FB36=\"無し\"),OR(FM36=\"\",FM36=\"無し\")),\"\",1)","v":""},{"$f":"IF(AND(EZ36=\"\",EX36=\"\"),\"\",IF(EZ36=\"無し\",EX36,IF(EX36=\"無し\",EZ36,IF(AND(EZ36=\"有効\",EX36<>\"有効\"),EX36,IF(AND(EZ36=\"シャッター\",EX36=\"その他\"),EX36,EZ36)))))","v":""}]
[3,null,null,{"$f":"IF(B37=\"\",\"\",B37)","v":""},null,null,null,null,null,null,null,null,null,null,null,null,null,null,null,null,null,null,null,null,null,null,null,null,null,null,null,null,null,null,null,null,null,null,null,null,null,null,null,null,null,null,null,null,null,"",null,null,null,null,null,null,null,null,null,null,null,null,null,null,null,null,null,null,null,null,null,null,null,null,null,null,null,null,null,null,null,null,null,null,null,null,null,null,null,null,null,null,null,null,null,null,null,null,null,null,null,null,null,null,null,null,null,null,null,null,null,null,null,null,null,null,null,null,null,null,null,null,null,null,null,null,null,null,null,null,null,null,null,null,null,null,null,null,null,null,null,null,null,null,null,null,null,null,null,null,"",null,null,null,null,null,null,null,null,null,null,"",null,null,null,null,null,null,null,null,null,null,"",null,null,null,null,null,null,null,null,null,null,"",null,null,null,null,null,null,null,null,"","","","","",1,"",1,1,{"$f":"IF(OR(CL37=\"○\",CM37=\"○\",CN37=\"○\",CO37=1,CO37=2,CO37=3,CP37=1,CP37=2,CP37=3),1,\"\")","v":""},"","","","","","","","","","","","","","","","","","","","","","","","","","","","","","",""]
[4,null,null,"",null,null,null,null,null,null,null,null,null,null,null,null,null,null,null,null,null,null,null,null,null,null,null,null,null,null,null,null,null,null,null,null,null,null,null,null,null,null,null,null,null,null,null,null,null,"",null,null,null,null,null,null,null,null,null,null,null,null,null,null,null,null,null,null,null,null,null,null,null,null,null,null,null,null,null,null,null,null,null,null,null,null,null,null,null,null,null,null,null,null,null,null,null,null,null,null,null,null,null,null,null,null,null,null,null,null,null,null,null,null,null,null,null,null,null,null,null,null,null,null,null,null,null,null,null,null,null,null,null,null,null,null,null,null,null,null,null,null,null,null,null,null,null,null,null,null,"",null,null,null,null,null,null,null,null,null,null,"",null,null,null,null,null,null,null,null,null,null,"",null,null,null,null,null,null,null,null,null,null,"",null,null,null,null,null,null,null,null,"","","","","",1,"",1,1,"","","","","","","","","","","","","","","","","","","","","","","","","","","","","","","",""]
[5,null,null,"",null,null,null,null,null,null,null,null,null,null,null,null,null,null,null,null,null,null,null,null,null,null,null,null,null,null,null,null,null,null,null,null,null,null,null,null,null,null,null,null,null,null,null,null,null,"",null,null,null,null,null,null,null,null,null,null,null,null,null,null,null,null,null,null,null,null,null,null,null,null,null,null,null,null,null,null,null,null,null,null,null,null,null,null,null,null,null,null,null,null,null,null,null,null,null,null,null,null,null,null,null,null,null,null,null,null,null,null,null,null,null,null,null,null,null,null,null,null,null,null,null,null,null,null,null,null,null,null,null,null,null,null,null,null,null,null,null,null,null,null,null,null,null,null,null,null,"",null,null,null,null,null,null,null,null,null,null,"",null,null,null,null,null,null,null,null,null,null,"",null,null,null,null,null,null,null,null,null,null,"",null,null,null,null,null,null,null,null,"","","","","",1,"",1,1,"","","","","","","","","","","","","","","","","","","","","","","","","","","","","","","",""]
[6,null,null,"",null,null,null,null,null,null,null,null,null,null,null,null,null,null,null,null,null,null,null,null,null,null,null,null,null,null,null,null,null,null,null,null,null,null,null,null,null,null,null,null,null,null,null,null,null,"",null,null,null,null,null,null,null,null,null,null,null,null,null,null,null,null,null,null,null,null,null,null,null,null,null,null,null,null,null,null,null,null,null,null,null,null,null,null,null,null,null,null,null,null,null,null,null,null,null,null,null,null,null,null,null,null,null,null,null,null,null,null,null,null,null,null,null,null,null,null,null,null,null,null,null,null,null,null,null,null,null,null,null,null,null,null,null,null,null,null,null,null,null,null,null,null,null,null,null,null,"",null,null,null,null,null,null,null,null,null,null,"",null,null,null,null,null,null,null,null,null,null,"",null,null,null,null,null,null,null,null,null,null,"",null,null,null,null,null,null,null,null,"","","","","",1,"",1,1,"","","","","","","","","","","","","","","","","","","","","","","","","","","","","","","",""]
[7,null,null,"",null,null,null,null,null,null,null,null,null,null,null,null,null,null,null,null,null,null,null,null,null,null,null,null,null,null,null,null,null,null,null,null,null,null,null,null,null,null,null,null,null,null,null,null,null,"",null,null,null,null,null,null,null,null,null,null,null,null,null,null,null,null,null,null,null,null,null,null,null,null,null,null,null,null,null,null,null,null,null,null,null,null,null,null,null,null,null,null,null,null,null,null,null,null,null,null,null,null,null,null,null,null,null,null,null,null,null,null,null,null,null,null,null,null,null,null,null,null,null,null,null,null,null,null,null,null,null,null,null,null,null,null,null,null,null,null,null,null,null,null,null,null,null,null,null,null,"",null,null,null,null,null,null,null,null,null,null,"",null,null,null,null,null,null,null,null,null,null,"",null,null,null,null,null,null,null,null,null,null,"",null,null,null,null,null,null,null,null,"","","","","",1,"",1,1,"","","","","","","","","","","","","","","","","","","","","","","","","","","","","","","",""]
[8,null,null,"",null,null,null,null,null,null,null,null,null,null,null,null,null,null,null,null,null,null,null,null,null,null,null,null,null,null,null,null,null,null,null,null,null,null,null,null,null,null,null,null,null,null,null,null,null,"",null,null,null,null,null,null,null,null,null,null,null,null,null,null,null,null,null,null,null,null,null,null,null,null,null,null,null,null,null,null,null,null,null,null,null,null,null,null,null,null,null,null,null,null,null,null,null,null,null,null,null,null,null,null,null,null,null,null,null,null,null,null,null,null,null,null,null,null,null,null,null,null,null,null,null,null,null,null,null,null,null,null,null,null,null,null,null,null,null,null,null,null,null,null,null,null,null,null,null,null,"",null,null,null,null,null,null,null,null,null,null,"",null,null,null,null,null,null,null,null,null,null,"",null,null,null,null,null,null,null,null,null,null,"",null,null,null,null,null,null,null,null,"","","","","",1,"",1,1,"","","","","","","","","","","","","","","","","","","","","","","","","","","","","","","",""]
[9,null,null,"",null,null,null,null,null,null,null,null,null,null,null,null,null,null,null,null,null,null,null,null,null,null,null,null,null,null,null,null,null,null,null,null,null,null,null,null,null,null,null,null,null,null,null,null,null,"",null,null,null,null,null,null,null,null,null,null,null,null,null,null,null,null,null,null,null,null,null,null,null,null,null,null,null,null,null,null,null,null,null,null,null,null,null,null,null,null,null,null,null,null,null,null,null,null,null,null,null,null,null,null,null,null,null,null,null,null,null,null,null,null,null,null,null,null,null,null,null,null,null,null,null,null,null,null,null,null,null,null,null,null,null,null,null,null,null,null,null,null,null,null,null,null,null,null,null,null,"",null,null,null,null,null,null,null,null,null,null,"",null,null,null,null,null,null,null,null,null,null,"",null,null,null,null,null,null,null,null,null,null,"",null,null,null,null,null,null,null,null,"","","","","",1,"",1,1,"","","","","","","","","","","","","","","","","","","","","","","","","","","","","","","",""]
[10,null,null,"",null,null,null,null,null,null,null,null,null,null,null,null,null,null,null,null,null,null,null,null,null,null,null,null,null,null,null,null,null,null,null,null,null,null,null,null,null,null,null,null,null,null,null,null,null,"",null,null,null,null,null,null,null,null,null,null,null,null,null,null,null,null,null,null,null,null,null,null,null,null,null,null,null,null,null,null,null,null,null,null,null,null,null,null,null,null,null,null,null,null,null,null,null,null,null,null,null,null,null,null,null,null,null,null,null,null,null,null,null,null,null,null,null,null,null,null,null,null,null,null,null,null,null,null,null,null,null,null,null,null,null,null,null,null,null,null,null,null,null,null,null,null,null,null,null,null,"",null,null,null,null,null,null,null,null,null,null,"",null,null,null,null,null,null,null,null,null,null,"",null,null,null,null,null,null,null,null,null,null,"",null,null,null,null,null,null,null,null,"","","","","",1,"",1,1,"","","","","","","","","","","","","","","","","","","","","","","","","","","","","","","",""]
[11,null,null,"",null,null,null,null,null,null,null,null,null,null,null,null,null,null,null,null,null,null,null,null,null,null,null,null,null,null,null,null,null,null,null,null,null,null,null,null,null,null,null,null,null,null,null,null,null,"",null,null,null,null,null,null,null,null,null,null,null,null,null,null,null,null,null,null,null,null,null,null,null,null,null,null,null,null,null,null,null,null,null,null,null,null,null,null,null,null,null,null,null,null,null,null,null,null,null,null,null,null,null,null,null,null,null,null,null,null,null,null,null,null,null,null,null,null,null,null,null,null,null,null,null,null,null,null,null,null,null,null,null,null,null,null,null,null,null,null,null,null,null,null,null,null,null,null,null,null,"",null,null,null,null,null,null,null,null,null,null,"",null,null,null,null,null,null,null,null,null,null,"",null,null,null,null,null,null,null,null,null,null,"",null,null,null,null,null,null,null,null,"","","","","",1,"",1,1,"","","","","","","","","","","","","","","","","","","","","","","","","","","","","","","",""]
[12,null,null,"",null,null,null,null,null,null,null,null,null,null,null,null,null,null,null,null,null,null,null,null,null,null,null,null,null,null,null,null,null,null,null,null,null,null,null,null,null,null,null,null,null,null,null,null,null,"",null,null,null,null,null,null,null,null,null,null,null,null,null,null,null,null,null,null,null,null,null,null,null,null,null,null,null,null,null,null,null,null,null,null,null,null,null,null,null,null,null,null,null,null,null,null,null,null,null,null,null,null,null,null,null,null,null,null,null,null,null,null,null,null,null,null,null,null,null,null,null,null,null,null,null,null,null,null,null,null,null,null,null,null,null,null,null,null,null,null,null,null,null,null,null,null,null,null,null,null,"",null,null,null,null,null,null,null,null,null,null,"",null,null,null,null,null,null,null,null,null,null,"",null,null,null,null,null,null,null,null,null,null,"",null,null,null,null,null,null,null,null,"","","","","",1,"",1,1,"","","","","","","","","","","","","","","","","","","","","","","","","","","","","","","",""]
[13,null,null,"",null,null,null,null,null,null,null,null,null,null,null,null,null,null,null,null,null,null,null,null,null,null,null,null,null,null,null,null,null,null,null,null,null,null,null,null,null,null,null,null,null,null,null,null,null,"",null,null,null,null,null,null,null,null,null,null,null,null,null,null,null,null,null,null,null,null,null,null,null,null,null,null,null,null,null,null,null,null,null,null,null,null,null,null,null,null,null,null,null,null,null,null,null,null,null,null,null,null,null,null,null,null,null,null,null,null,null,null,null,null,null,null,null,null,null,null,null,null,null,null,null,null,null,null,null,null,null,null,null,null,null,null,null,null,null,null,null,null,null,null,null,null,null,null,null,null,"",null,null,null,null,null,null,null,null,null,null,"",null,null,null,null,null,null,null,null,null,null,"",null,null,null,null,null,null,null,null,null,null,"",null,null,null,null,null,null,null,null,"","","","","",1,"",1,1,"","","","","","","","","","","","","","","","","","","","","","","","","","","","","","","",""]
[14,null,null,"",null,null,null,null,null,null,null,null,null,null,null,null,null,null,null,null,null,null,null,null,null,null,null,null,null,null,null,null,null,null,null,null,null,null,null,null,null,null,null,null,null,null,null,null,null,"",null,null,null,null,null,null,null,null,null,null,null,null,null,null,null,null,null,null,null,null,null,null,null,null,null,null,null,null,null,null,null,null,null,null,null,null,null,null,null,null,null,null,null,null,null,null,null,null,null,null,null,null,null,null,null,null,null,null,null,null,null,null,null,null,null,null,null,null,null,null,null,null,null,null,null,null,null,null,null,null,null,null,null,null,null,null,null,null,null,null,null,null,null,null,null,null,null,null,null,null,"",null,null,null,null,null,null,null,null,null,null,"",null,null,null,null,null,null,null,null,null,null,"",null,null,null,null,null,null,null,null,null,null,"",null,null,null,null,null,null,null,null,"","","","","",1,"",1,1,"","","","","","","","","","","","","","","","","","","","","","","","","","","","","","","",""]
[15,null,null,"",null,null,null,null,null,null,null,null,null,null,null,null,null,null,null,null,null,null,null,null,null,null,null,null,null,null,null,null,null,null,null,null,null,null,null,null,null,null,null,null,null,null,null,null,null,"",null,null,null,null,null,null,null,null,null,null,null,null,null,null,null,null,null,null,null,null,null,null,null,null,null,null,null,null,null,null,null,null,null,null,null,null,null,null,null,null,null,null,null,null,null,null,null,null,null,null,null,null,null,null,null,null,null,null,null,null,null,null,null,null,null,null,null,null,null,null,null,null,null,null,null,null,null,null,null,null,null,null,null,null,null,null,null,null,null,null,null,null,null,null,null,null,null,null,null,null,"",null,null,null,null,null,null,null,null,null,null,"",null,null,null,null,null,null,null,null,null,null,"",null,null,null,null,null,null,null,null,null,null,"",null,null,null,null,null,null,null,null,"","","","","",1,"",1,1,"","","","","","","","","","","","","","","","","","","","","","","","","","","","","","","",""]
[16,null,null,"",null,null,null,null,null,null,null,null,null,null,null,null,null,null,null,null,null,null,null,null,null,null,null,null,null,null,null,null,null,null,null,null,null,null,null,null,null,null,null,null,null,null,null,null,null,"",null,null,null,null,null,null,null,null,null,null,null,null,null,null,null,null,null,null,null,null,null,null,null,null,null,null,null,null,null,null,null,null,null,null,null,null,null,null,null,null,null,null,null,null,null,null,null,null,null,null,null,null,null,null,null,null,null,null,null,null,null,null,null,null,null,null,null,null,null,null,null,null,null,null,null,null,null,null,null,null,null,null,null,null,null,null,null,null,null,null,null,null,null,null,null,null,null,null,null,null,"",null,null,null,null,null,null,null,null,null,null,"",null,null,null,null,null,null,null,null,null,null,"",null,null,null,null,null,null,null,null,null,null,"",null,null,null,null,null,null,null,null,"","","","","",1,"",1,1,"","","","","","","","","","","","","","","","","","","","","","","","","","","","","","","",""]
[17,null,null,"",null,null,null,null,null,null,null,null,null,null,null,null,null,null,null,null,null,null,null,null,null,null,null,null,null,null,null,null,null,null,null,null,null,null,null,null,null,null,null,null,null,null,null,null,null,"",null,null,null,null,null,null,null,null,null,null,null,null,null,null,null,null,null,null,null,null,null,null,null,null,null,null,null,null,null,null,null,null,null,null,null,null,null,null,null,null,null,null,null,null,null,null,null,null,null,null,null,null,null,null,null,null,null,null,null,null,null,null,null,null,null,null,null,null,null,null,null,null,null,null,null,null,null,null,null,null,null,null,null,null,null,null,null,null,null,null,null,null,null,null,null,null,null,null,null,null,"",null,null,null,null,null,null,null,null,null,null,"",null,null,null,null,null,null,null,null,null,null,"",null,null,null,null,null,null,null,null,null,null,"",null,null,null,null,null,null,null,null,"","","","","",1,"",1,1,"","","","","","","","","","","","","","","","","","","","","","","","","","","","","","","",""]
[18,null,null,"",null,null,null,null,null,null,null,null,null,null,null,null,null,null,null,null,null,null,null,null,null,null,null,null,null,null,null,null,null,null,null,null,null,null,null,null,null,null,null,null,null,null,null,null,null,"",null,null,null,null,null,null,null,null,null,null,null,null,null,null,null,null,null,null,null,null,null,null,null,null,null,null,null,null,null,null,null,null,null,null,null,null,null,null,null,null,null,null,null,null,null,null,null,null,null,null,null,null,null,null,null,null,null,null,null,null,null,null,null,null,null,null,null,null,null,null,null,null,null,null,null,null,null,null,null,null,null,null,null,null,null,null,null,null,null,null,null,null,null,null,null,null,null,null,null,null,"",null,null,null,null,null,null,null,null,null,null,"",null,null,null,null,null,null,null,null,null,null,"",null,null,null,null,null,null,null,null,null,null,"",null,null,null,null,null,null,null,null,"","","","","",1,"",1,1,"","","","","","","","","","","","","","","","","","","","","","","","","","","","","","","",""]
[19,null,null,"",null,null,null,null,null,null,null,null,null,null,null,null,null,null,null,null,null,null,null,null,null,null,null,null,null,null,null,null,null,null,null,null,null,null,null,null,null,null,null,null,null,null,null,null,null,"",null,null,null,null,null,null,null,null,null,null,null,null,null,null,null,null,null,null,null,null,null,null,null,null,null,null,null,null,null,null,null,null,null,null,null,null,null,null,null,null,null,null,null,null,null,null,null,null,null,null,null,null,null,null,null,null,null,null,null,null,null,null,null,null,null,null,null,null,null,null,null,null,null,null,null,null,null,null,null,null,null,null,null,null,null,null,null,null,null,null,null,null,null,null,null,null,null,null,null,null,"",null,null,null,null,null,null,null,null,null,null,"",null,null,null,null,null,null,null,null,null,null,"",null,null,null,null,null,null,null,null,null,null,"",null,null,null,null,null,null,null,null,"","","","","",1,"",1,1,"","","","","","","","","","","","","","","","","","","","","","","","","","","","","","","",""]
[20,null,null,"",null,null,null,null,null,null,null,null,null,null,null,null,null,null,null,null,null,null,null,null,null,null,null,null,null,null,null,null,null,null,null,null,null,null,null,null,null,null,null,null,null,null,null,null,null,"",null,null,null,null,null,null,null,null,null,null,null,null,null,null,null,null,null,null,null,null,null,null,null,null,null,null,null,null,null,null,null,null,null,null,null,null,null,null,null,null,null,null,null,null,null,null,null,null,null,null,null,null,null,null,null,null,null,null,null,null,null,null,null,null,null,null,null,null,null,null,null,null,null,null,null,null,null,null,null,null,null,null,null,null,null,null,null,null,null,null,null,null,null,null,null,null,null,null,null,null,"",null,null,null,null,null,null,null,null,null,null,"",null,null,null,null,null,null,null,null,null,null,"",null,null,null,null,null,null,null,null,null,null,"",null,null,null,null,null,null,null,null,"","","","","",1,"",1,1,"","","","","","","","","","","","","","","","","","","","","","","","","","","","","","","",""]
[21,null,null,"",null,null,null,null,null,null,null,null,null,null,null,null,null,null,null,null,null,null,null,null,null,null,null,null,null,null,null,null,null,null,null,null,null,null,null,null,null,null,null,null,null,null,null,null,null,"",null,null,null,null,null,null,null,null,null,null,null,null,null,null,null,null,null,null,null,null,null,null,null,null,null,null,null,null,null,null,null,null,null,null,null,null,null,null,null,null,null,null,null,null,null,null,null,null,null,null,null,null,null,null,null,null,null,null,null,null,null,null,null,null,null,null,null,null,null,null,null,null,null,null,null,null,null,null,null,null,null,null,null,null,null,null,null,null,null,null,null,null,null,null,null,null,null,null,null,null,"",null,null,null,null,null,null,null,null,null,null,"",null,null,null,null,null,null,null,null,null,null,"",null,null,null,null,null,null,null,null,null,null,"",null,null,null,null,null,null,null,null,"","","","","",1,"",1,1,"","","","","","","","","","","","","","","","","","","","","","","","","","","","","","","",""]
[22,null,null,"",null,null,null,null,null,null,null,null,null,null,null,null,null,null,null,null,null,null,null,null,null,null,null,null,null,null,null,null,null,null,null,null,null,null,null,null,null,null,null,null,null,null,null,null,null,"",null,null,null,null,null,null,null,null,null,null,null,null,null,null,null,null,null,null,null,null,null,null,null,null,null,null,null,null,null,null,null,null,null,null,null,null,null,null,null,null,null,null,null,null,null,null,null,null,null,null,null,null,null,null,null,null,null,null,null,null,null,null,null,null,null,null,null,null,null,null,null,null,null,null,null,null,null,null,null,null,null,null,null,null,null,null,null,null,null,null,null,null,null,null,null,null,null,null,null,null,"",null,null,null,null,null,null,null,null,null,null,"",null,null,null,null,null,null,null,null,null,null,"",null,null,null,null,null,null,null,null,null,null,"",null,null,null,null,null,null,null,null,"","","","","",1,"",1,1,"","","","","","","","","","","","","","","","","","","","","","","","","","","","","","","",""]
[23,null,null,"",null,null,null,null,null,null,null,null,null,null,null,null,null,null,null,null,null,null,null,null,null,null,null,null,null,null,null,null,null,null,null,null,null,null,null,null,null,null,null,null,null,null,null,null,null,"",null,null,null,null,null,null,null,null,null,null,null,null,null,null,null,null,null,null,null,null,null,null,null,null,null,null,null,null,null,null,null,null,null,null,null,null,null,null,null,null,null,null,null,null,null,null,null,null,null,null,null,null,null,null,null,null,null,null,null,null,null,null,null,null,null,null,null,null,null,null,null,null,null,null,null,null,null,null,null,null,null,null,null,null,null,null,null,null,null,null,null,null,null,null,null,null,null,null,null,null,"",null,null,null,null,null,null,null,null,null,null,"",null,null,null,null,null,null,null,null,null,null,"",null,null,null,null,null,null,null,null,null,null,"",null,null,null,null,null,null,null,null,"","","","","",1,"",1,1,"","","","","","","","","","","","","","","","","","","","","","","","","","","","","","","",""]
[24,null,null,"",null,null,null,null,null,null,null,null,null,null,null,null,null,null,null,null,null,null,null,null,null,null,null,null,null,null,null,null,null,null,null,null,null,null,null,null,null,null,null,null,null,null,null,null,null,"",null,null,null,null,null,null,null,null,null,null,null,null,null,null,null,null,null,null,null,null,null,null,null,null,null,null,null,null,null,null,null,null,null,null,null,null,null,null,null,null,null,null,null,null,null,null,null,null,null,null,null,null,null,null,null,null,null,null,null,null,null,null,null,null,null,null,null,null,null,null,null,null,null,null,null,null,null,null,null,null,null,null,null,null,null,null,null,null,null,null,null,null,null,null,null,null,null,null,null,null,"",null,null,null,null,null,null,null,null,null,null,"",null,null,null,null,null,null,null,null,null,null,"",null,null,null,null,null,null,null,null,null,null,"",null,null,null,null,null,null,null,null,"","","","","",1,"",1,1,"","","","","","","","","","","","","","","","","","","","","","","","","","","","","","","",""]
[25,null,null,"",null,null,null,null,null,null,null,null,null,null,null,null,null,null,null,null,null,null,null,null,null,null,null,null,null,null,null,null,null,null,null,null,null,null,null,null,null,null,null,null,null,null,null,null,null,"",null,null,null,null,null,null,null,null,null,null,null,null,null,null,null,null,null,null,null,null,null,null,null,null,null,null,null,null,null,null,null,null,null,null,null,null,null,null,null,null,null,null,null,null,null,null,null,null,null,null,null,null,null,null,null,null,null,null,null,null,null,null,null,null,null,null,null,null,null,null,null,null,null,null,null,null,null,null,null,null,null,null,null,null,null,null,null,null,null,null,null,null,null,null,null,null,null,null,null,null,"",null,null,null,null,null,null,null,null,null,null,"",null,null,null,null,null,null,null,null,null,null,"",null,null,null,null,null,null,null,null,null,null,"",null,null,null,null,null,null,null,null,"","","","","",1,"",1,1,"","","","","","","","","","","","","","","","","","","","","","","","","","","","","","","",""]
[26,null,null,"",null,null,null,null,null,null,null,null,null,null,null,null,null,null,null,null,null,null,null,null,null,null,null,null,null,null,null,null,null,null,null,null,null,null,null,null,null,null,null,null,null,null,null,null,null,"",null,null,null,null,null,null,null,null,null,null,null,null,null,null,null,null,null,null,null,null,null,null,null,null,null,null,null,null,null,null,null,null,null,null,null,null,null,null,null,null,null,null,null,null,null,null,null,null,null,null,null,null,null,null,null,null,null,null,null,null,null,null,null,null,null,null,null,null,null,null,null,null,null,null,null,null,null,null,null,null,null,null,null,null,null,null,null,null,null,null,null,null,null,null,null,null,null,null,null,null,"",null,null,null,null,null,null,null,null,null,null,"",null,null,null,null,null,null,null,null,null,null,"",null,null,null,null,null,null,null,null,null,null,"",null,null,null,null,null,null,null,null,"","","","","",1,"",1,1,"","","","","","","","","","","","","","","","","","","","","","","","","","","","","","","",""]
[27,null,null,"",null,null,null,null,null,null,null,null,null,null,null,null,null,null,null,null,null,null,null,null,null,null,null,null,null,null,null,null,null,null,null,null,null,null,null,null,null,null,null,null,null,null,null,null,null,"",null,null,null,null,null,null,null,null,null,null,null,null,null,null,null,null,null,null,null,null,null,null,null,null,null,null,null,null,null,null,null,null,null,null,null,null,null,null,null,null,null,null,null,null,null,null,null,null,null,null,null,null,null,null,null,null,null,null,null,null,null,null,null,null,null,null,null,null,null,null,null,null,null,null,null,null,null,null,null,null,null,null,null,null,null,null,null,null,null,null,null,null,null,null,null,null,null,null,null,null,"",null,null,null,null,null,null,null,null,null,null,"",null,null,null,null,null,null,null,null,null,null,"",null,null,null,null,null,null,null,null,null,null,"",null,null,null,null,null,null,null,null,"","","","","",1,"",1,1,"","","","","","","","","","","","","","","","","","","","","","","","","","","","","","","",""]
[28,null,null,"",null,null,null,null,null,null,null,null,null,null,null,null,null,null,null,null,null,null,null,null,null,null,null,null,null,null,null,null,null,null,null,null,null,null,null,null,null,null,null,null,null,null,null,null,null,"",null,null,null,null,null,null,null,null,null,null,null,null,null,null,null,null,null,null,null,null,null,null,null,null,null,null,null,null,null,null,null,null,null,null,null,null,null,null,null,null,null,null,null,null,null,null,null,null,null,null,null,null,null,null,null,null,null,null,null,null,null,null,null,null,null,null,null,null,null,null,null,null,null,null,null,null,null,null,null,null,null,null,null,null,null,null,null,null,null,null,null,null,null,null,null,null,null,null,null,null,"",null,null,null,null,null,null,null,null,null,null,"",null,null,null,null,null,null,null,null,null,null,"",null,null,null,null,null,null,null,null,null,null,"",null,null,null,null,null,null,null,null,"","","","","",1,"",1,1,"","","","","","","","","","","","","","","","","","","","","","","","","","","","","","","",""]
[29,null,null,"",null,null,null,null,null,null,null,null,null,null,null,null,null,null,null,null,null,null,null,null,null,null,null,null,null,null,null,null,null,null,null,null,null,null,null,null,null,null,null,null,null,null,null,null,null,"",null,null,null,null,null,null,null,null,null,null,null,null,null,null,null,null,null,null,null,null,null,null,null,null,null,null,null,null,null,null,null,null,null,null,null,null,null,null,null,null,null,null,null,null,null,null,null,null,null,null,null,null,null,null,null,null,null,null,null,null,null,null,null,null,null,null,null,null,null,null,null,null,null,null,null,null,null,null,null,null,null,null,null,null,null,null,null,null,null,null,null,null,null,null,null,null,null,null,null,null,"",null,null,null,null,null,null,null,null,null,null,"",null,null,null,null,null,null,null,null,null,null,"",null,null,null,null,null,null,null,null,null,null,"",null,null,null,null,null,null,null,null,"","","","","",1,"",1,1,"","","","","","","","","","","","","","","","","","","","","","","","","","","","","","","",""]
[30,null,null,"",null,null,null,null,null,null,null,null,null,null,null,null,null,null,null,null,null,null,null,null,null,null,null,null,null,null,null,null,null,null,null,null,null,null,null,null,null,null,null,null,null,null,null,null,null,"",null,null,null,null,null,null,null,null,null,null,null,null,null,null,null,null,null,null,null,null,null,null,null,null,null,null,null,null,null,null,null,null,null,null,null,null,null,null,null,null,null,null,null,null,null,null,null,null,null,null,null,null,null,null,null,null,null,null,null,null,null,null,null,null,null,null,null,null,null,null,null,null,null,null,null,null,null,null,null,null,null,null,null,null,null,null,null,null,null,null,null,null,null,null,null,null,null,null,null,null,"",null,null,null,null,null,null,null,null,null,null,"",null,null,null,null,null,null,null,null,null,null,"",null,null,null,null,null,null,null,null,null,null,"",null,null,null,null,null,null,null,null,"","","","","",1,"",1,1,"","","","","","","","","","","","","","","","","","","","","","","","","","","","","","","",""]
[31,null,null,"",null,null,null,null,null,null,null,null,null,null,null,null,null,null,null,null,null,null,null,null,null,null,null,null,null,null,null,null,null,null,null,null,null,null,null,null,null,null,null,null,null,null,null,null,null,"",null,null,null,null,null,null,null,null,null,null,null,null,null,null,null,null,null,null,null,null,null,null,null,null,null,null,null,null,null,null,null,null,null,null,null,null,null,null,null,null,null,null,null,null,null,null,null,null,null,null,null,null,null,null,null,null,null,null,null,null,null,null,null,null,null,null,null,null,null,null,null,null,null,null,null,null,null,null,null,null,null,null,null,null,null,null,null,null,null,null,null,null,null,null,null,null,null,null,null,null,"",null,null,null,null,null,null,null,null,null,null,"",null,null,null,null,null,null,null,null,null,null,"",null,null,null,null,null,null,null,null,null,null,"",null,null,null,null,null,null,null,null,"","","","","",1,"",1,1,"","","","","","","","","","","","","","","","","","","","","","","","","","","","","","","",""]
[32,null,null,"",null,null,null,null,null,null,null,null,null,null,null,null,null,null,null,null,null,null,null,null,null,null,null,null,null,null,null,null,null,null,null,null,null,null,null,null,null,null,null,null,null,null,null,null,null,{"$f":"IF(GQ66=1,IF(F66=\"\",\"\",F66),\"\")","v":""},null,null,null,null,null,null,null,null,null,null,null,null,null,null,null,null,null,null,null,null,null,null,null,null,null,null,null,null,null,null,null,null,null,null,null,null,null,null,null,null,null,null,null,null,null,null,null,null,null,null,null,null,null,null,null,null,null,null,null,null,null,null,null,null,null,null,null,null,null,null,null,null,null,null,null,null,null,null,null,null,null,null,null,null,null,null,null,null,null,null,null,null,null,null,null,null,null,null,null,null,{"$f":"IF(F66=\"\",\"\",F66)","v":""},null,null,null,null,null,null,null,null,null,null,{"$f":"IF(OR(IF(OR(FG66=\"\",FG66=\"無し\"),\"\",1)=1,IF(OR(FI66=\"\",FI66=\"無し\"),\"\",1)=1,IF(OR(FK66=\"\",FK66=\"無し\"),\"\",1)=1,IF(OR(FM66=\"\",FM66=\"無し\"),\"\",1)=1),IF(F66=\"\",\"\",F66),\"\")","v":""},null,null,null,null,null,null,null,null,null,null,{"$f":"IF(OR(IF(OR(FR66=\"\",FR66=\"無し\"),\"\",1)=1,IF(OR(FT66=\"\",FT66=\"無し\"),\"\",1)=1,IF(OR(FV66=\"\",FV66=\"無し\"),\"\",1)=1,IF(OR(FX66=\"\",FX66=\"無し\"),\"\",1)=1),IF(F66=\"\",\"\",F66),\"\")","v":""},null,null,null,null,null,null,null,null,null,null,{"$f":"IF(OR(IF(OR(GC66=\"\",GC66=\"無し\"),\"\",1)=1,IF(OR(GE66=\"\",GE66=\"無し\"),\"\",1)=1,IF(OR(GG66=\"\",GG66=\"無し\"),\"\",1)=1,IF(OR(GI66=\"\",GI66=\"無し\"),\"\",1)=1),IF(F66=\"\",\"\",F66),\"\")","v":""},null,null,null,null,null,null,null,null,{"$f":"IF(Y66<>\"\",1,\"\")","v":""},{"$f":"IF(Z66<>\"\",1,\"\")","v":""},{"$f":"IF(OR(AA66=\"○\",AB66<>\"\",AG66<>\"\",AJ66<>\"\"),1,\"\")","v":""},{"$f":"IF(OR(AK66=\"○\",AL66=\"○\",AM66=\"○\",AN66=\"○\",AQ66=\"○\"),1,\"\")","v":""},{"$f":"IF(AT66<>\"\",1,\"\")","v":""},1,{"$f":"IF(OR(AV66=\"○\",AY66<>\"\",BA66=\"はり\",BA66=\"傾斜屋根\",BA66=\"その他\",BD66<>\"\"),1,\"\")","v":""},1,1,"","","","","","","","","","","","","","","","","","","","","","","","","","","","","","","",""]
[33,null,null,"",null,null,null,null,null,null,null,null,null,null,null,null,null,null,null,null,null,null,null,null,null,null,null,null,null,null,null,null,null,null,null,null,null,null,null,null,null,null,null,null,null,null,null,null,null,"",null,null,null,null,null,null,null,null,null,null,null,null,null,null,null,null,null,null,null,null,null,null,null,null,null,null,null,null,null,null,null,null,null,null,null,null,null,null,null,null,null,null,null,null,null,null,null,null,null,null,null,null,null,null,null,null,null,null,null,null,null,null,null,null,null,null,null,null,null,null,null,null,null,null,null,null,null,null,null,null,null,null,null,null,null,null,null,null,null,null,null,null,null,null,null,null,null,null,null,null,"",null,null,null,null,null,null,null,null,null,null,"",null,null,null,null,null,null,null,null,null,null,"",null,null,null,null,null,null,null,null,null,null,"",null,null,null,null,null,null,null,null,"","","","","",1,"",1,1,"","","","","","","","","","","","","","","","","","","","","","","","","","","","","","","",""]
[34,null,null,"",null,null,null,null,null,null,null,null,null,null,null,null,null,null,null,null,null,null,null,null,null,null,null,null,null,null,null,null,null,null,null,null,null,null,null,null,null,null,null,null,null,null,null,null,null,"",null,null,null,null,null,null,null,null,null,null,null,null,null,null,null,null,null,null,null,null,null,null,null,null,null,null,null,null,null,null,null,null,null,null,null,null,null,null,null,null,null,null,null,null,null,null,null,null,null,null,null,null,null,null,null,null,null,null,null,null,null,null,null,null,null,null,null,null,null,null,null,null,null,null,null,null,null,null,null,null,null,null,null,null,null,null,null,null,null,null,null,null,null,null,null,null,null,null,null,null,"",null,null,null,null,null,null,null,null,null,null,"",null,null,null,null,null,null,null,null,null,null,"",null,null,null,null,null,null,null,null,null,null,"",null,null,null,null,null,null,null,null,"","","","","",1,"",1,1,"","","","","","","","","","","","","","","","","","","","","","","","","","","","","","","",""]
[35,null,null,"",null,null,null,null,null,null,null,null,null,null,null,null,null,null,null,null,null,null,null,null,null,null,null,null,null,null,null,null,null,null,null,null,null,null,null,null,null,null,null,null,null,null,null,null,null,"",null,null,null,null,null,null,null,null,null,null,null,null,null,null,null,null,null,null,null,null,null,null,null,null,null,null,null,null,null,null,null,null,null,null,null,null,null,null,null,null,null,null,null,null,null,null,null,null,null,null,null,null,null,null,null,null,null,null,null,null,null,null,null,null,null,null,null,null,null,null,null,null,null,null,null,null,null,null,null,null,null,null,null,null,null,null,null,null,null,null,null,null,null,null,null,null,null,null,null,null,"",null,null,null,null,null,null,null,null,null,null,"",null,null,null,null,null,null,null,null,null,null,"",null,null,null,null,null,null,null,null,null,null,"",null,null,null,null,null,null,null,null,"","","","","",1,"",1,1,"","","","","","","","","","","","","","","","","","","","","","","","","","","","","","","",""]
[36,null,null,"",null,null,null,null,null,null,null,null,null,null,null,null,null,null,null,null,null,null,null,null,null,null,null,null,null,null,null,null,null,null,null,null,null,null,null,null,null,null,null,null,null,null,null,null,null,"",null,null,null,null,null,null,null,null,null,null,null,null,null,null,null,null,null,null,null,null,null,null,null,null,null,null,null,null,null,null,null,null,null,null,null,null,null,null,null,null,null,null,null,null,null,null,null,null,null,null,null,null,null,null,null,null,null,null,null,null,null,null,null,null,null,null,null,null,null,null,null,null,null,null,null,null,null,null,null,null,null,null,null,null,null,null,null,null,null,null,null,null,null,null,null,null,null,null,null,null,"",null,null,null,null,null,null,null,null,null,null,"",null,null,null,null,null,null,null,null,null,null,"",null,null,null,null,null,null,null,null,null,null,"",null,null,null,null,null,null,null,null,"","","","","",1,"",1,1,"","","","","","","","","","","","","","","","","","","","","","","","","","","","","","","",""]
[37,null,null,"",null,null,null,null,null,null,null,null,null,null,null,null,null,null,null,null,null,null,null,null,null,null,null,null,null,null,null,null,null,null,null,null,null,null,null,null,null,null,null,null,null,null,null,null,null,"",null,null,null,null,null,null,null,null,null,null,null,null,null,null,null,null,null,null,null,null,null,null,null,null,null,null,null,null,null,null,null,null,null,null,null,null,null,null,null,null,null,null,null,null,null,null,null,null,null,null,null,null,null,null,null,null,null,null,null,null,null,null,null,null,null,null,null,null,null,null,null,null,null,null,null,null,null,null,null,null,null,null,null,null,null,null,null,null,null,null,null,null,null,null,null,null,null,null,null,null,"",null,null,null,null,null,null,null,null,null,null,"",null,null,null,null,null,null,null,null,null,null,"",null,null,null,null,null,null,null,null,null,null,"",null,null,null,null,null,null,null,null,"","","","","",1,"",1,1,"","","","","","","","","","","","","","","","","","","","","","","","","","","","","","","",""]
[38,null,null,"",null,null,null,null,null,null,null,null,null,null,null,null,null,null,null,null,null,null,null,null,null,null,null,null,null,null,null,null,null,null,null,null,null,null,null,null,null,null,null,null,null,null,null,null,null,"",null,null,null,null,null,null,null,null,null,null,null,null,null,null,null,null,null,null,null,null,null,null,null,null,null,null,null,null,null,null,null,null,null,null,null,null,null,null,null,null,null,null,null,null,null,null,null,null,null,null,null,null,null,null,null,null,null,null,null,null,null,null,null,null,null,null,null,null,null,null,null,null,null,null,null,null,null,null,null,null,null,null,null,null,null,null,null,null,null,null,null,null,null,null,null,null,null,null,null,null,"",null,null,null,null,null,null,null,null,null,null,"",null,null,null,null,null,null,null,null,null,null,"",null,null,null,null,null,null,null,null,null,null,"",null,null,null,null,null,null,null,null,"","","","","",1,"",1,1,"","","","","","","","","","","","","","","","","","","","","","","","","","","","","","","",""]
[39,null,null,"",null,null,null,null,null,null,null,null,null,null,null,null,null,null,null,null,null,null,null,null,null,null,null,null,null,null,null,null,null,null,null,null,null,null,null,null,null,null,null,null,null,null,null,null,null,"",null,null,null,null,null,null,null,null,null,null,null,null,null,null,null,null,null,null,null,null,null,null,null,null,null,null,null,null,null,null,null,null,null,null,null,null,null,null,null,null,null,null,null,null,null,null,null,null,null,null,null,null,null,null,null,null,null,null,null,null,null,null,null,null,null,null,null,null,null,null,null,null,null,null,null,null,null,null,null,null,null,null,null,null,null,null,null,null,null,null,null,null,null,null,null,null,null,null,null,null,"",null,null,null,null,null,null,null,null,null,null,"",null,null,null,null,null,null,null,null,null,null,"",null,null,null,null,null,null,null,null,null,null,"",null,null,null,null,null,null,null,null,"","","","","",1,"",1,1,"","","","","","","","","","","","","","","","","","","","","","","","","","","","","","","",""]
[40,null,null,"",null,null,null,null,null,null,null,null,null,null,null,null,null,null,null,null,null,null,null,null,null,null,null,null,null,null,null,null,null,null,null,null,null,null,null,null,null,null,null,null,null,null,null,null,null,"",null,null,null,null,null,null,null,null,null,null,null,null,null,null,null,null,null,null,null,null,null,null,null,null,null,null,null,null,null,null,null,null,null,null,null,null,null,null,null,null,null,null,null,null,null,null,null,null,null,null,null,null,null,null,null,null,null,null,null,null,null,null,null,null,null,null,null,null,null,null,null,null,null,null,null,null,null,null,null,null,null,null,null,null,null,null,null,null,null,null,null,null,null,null,null,null,null,null,null,null,"",null,null,null,null,null,null,null,null,null,null,"",null,null,null,null,null,null,null,null,null,null,"",null,null,null,null,null,null,null,null,null,null,"",null,null,null,null,null,null,null,null,"","","","","",1,"",1,1,"","","","","","","","","","","","","","","","","","","","","","","","","","","","","","","",""]
[41,null,null,"",null,null,null,null,null,null,null,null,null,null,null,null,null,null,null,null,null,null,null,null,null,null,null,null,null,null,null,null,null,null,null,null,null,null,null,null,null,null,null,null,null,null,null,null,null,"",null,null,null,null,null,null,null,null,null,null,null,null,null,null,null,null,null,null,null,null,null,null,null,null,null,null,null,null,null,null,null,null,null,null,null,null,null,null,null,null,null,null,null,null,null,null,null,null,null,null,null,null,null,null,null,null,null,null,null,null,null,null,null,null,null,null,null,null,null,null,null,null,null,null,null,null,null,null,null,null,null,null,null,null,null,null,null,null,null,null,null,null,null,null,null,null,null,null,null,null,"",null,null,null,null,null,null,null,null,null,null,"",null,null,null,null,null,null,null,null,null,null,"",null,null,null,null,null,null,null,null,null,null,"",null,null,null,null,null,null,null,null,"","","","","",1,"",1,1,"","","","","","","","","","","","","","","","","","","","","","","","","","","","","","","",""]
[42,null,null,"",null,null,null,null,null,null,null,null,null,null,null,null,null,null,null,null,null,null,null,null,null,null,null,null,null,null,null,null,null,null,null,null,null,null,null,null,null,null,null,null,null,null,null,null,null,"",null,null,null,null,null,null,null,null,null,null,null,null,null,null,null,null,null,null,null,null,null,null,null,null,null,null,null,null,null,null,null,null,null,null,null,null,null,null,null,null,null,null,null,null,null,null,null,null,null,null,null,null,null,null,null,null,null,null,null,null,null,null,null,null,null,null,null,null,null,null,null,null,null,null,null,null,null,null,null,null,null,null,null,null,null,null,null,null,null,null,null,null,null,null,null,null,null,null,null,null,"",null,null,null,null,null,null,null,null,null,null,"",null,null,null,null,null,null,null,null,null,null,"",null,null,null,null,null,null,null,null,null,null,"",null,null,null,null,null,null,null,null,"","","","","",1,"",1,1,"","","","","","","","","","","","","","","","","","","","","","","","","","","","","","","",""]
[43,null,null,"",null,null,null,null,null,null,null,null,null,null,null,null,null,null,null,null,null,null,null,null,null,null,null,null,null,null,null,null,null,null,null,null,null,null,null,null,null,null,null,null,null,null,null,null,null,"",null,null,null,null,null,null,null,null,null,null,null,null,null,null,null,null,null,null,null,null,null,null,null,null,null,null,null,null,null,null,null,null,null,null,null,null,null,null,null,null,null,null,null,null,null,null,null,null,null,null,null,null,null,null,null,null,null,null,null,null,null,null,null,null,null,null,null,null,null,null,null,null,null,null,null,null,null,null,null,null,null,null,null,null,null,null,null,null,null,null,null,null,null,null,null,null,null,null,null,null,"",null,null,null,null,null,null,null,null,null,null,"",null,null,null,null,null,null,null,null,null,null,"",null,null,null,null,null,null,null,null,null,null,"",null,null,null,null,null,null,null,null,"","","","","",1,"",1,1,"","","","","","","","","","","","","","","","","","","","","","","","","","","","","","","",""]
[44,null,null,"",null,null,null,null,null,null,null,null,null,null,null,null,null,null,null,null,null,null,null,null,null,null,null,null,null,null,null,null,null,null,null,null,null,null,null,null,null,null,null,null,null,null,null,null,null,"",null,null,null,null,null,null,null,null,null,null,null,null,null,null,null,null,null,null,null,null,null,null,null,null,null,null,null,null,null,null,null,null,null,null,null,null,null,null,null,null,null,null,null,null,null,null,null,null,null,null,null,null,null,null,null,null,null,null,null,null,null,null,null,null,null,null,null,null,null,null,null,null,null,null,null,null,null,null,null,null,null,null,null,null,null,null,null,null,null,null,null,null,null,null,null,null,null,null,null,null,"",null,null,null,null,null,null,null,null,null,null,"",null,null,null,null,null,null,null,null,null,null,"",null,null,null,null,null,null,null,null,null,null,"",null,null,null,null,null,null,null,null,"","","","","",1,"",1,1,"","","","","","","","","","","","","","","","","","","","","","","","","","","","","","","",""]
[45,null,null,"",null,null,null,null,null,null,null,null,null,null,null,null,null,null,null,null,null,null,null,null,null,null,null,null,null,null,null,null,null,null,null,null,null,null,null,null,null,null,null,null,null,null,null,null,null,"",null,null,null,null,null,null,null,null,null,null,null,null,null,null,null,null,null,null,null,null,null,null,null,null,null,null,null,null,null,null,null,null,null,null,null,null,null,null,null,null,null,null,null,null,null,null,null,null,null,null,null,null,null,null,null,null,null,null,null,null,null,null,null,null,null,null,null,null,null,null,null,null,null,null,null,null,null,null,null,null,null,null,null,null,null,null,null,null,null,null,null,null,null,null,null,null,null,null,null,null,"",null,null,null,null,null,null,null,null,null,null,"",null,null,null,null,null,null,null,null,null,null,"",null,null,null,null,null,null,null,null,null,null,"",null,null,null,null,null,null,null,null,"","","","","",1,"",1,1,"","","","","","","","","","","","","","","","","","","","","","","","","","","","","","","",""]
[46,null,null,"",null,null,null,null,null,null,null,null,null,null,null,null,null,null,null,null,null,null,null,null,null,null,null,null,null,null,null,null,null,null,null,null,null,null,null,null,null,null,null,null,null,null,null,null,null,"",null,null,null,null,null,null,null,null,null,null,null,null,null,null,null,null,null,null,null,null,null,null,null,null,null,null,null,null,null,null,null,null,null,null,null,null,null,null,null,null,null,null,null,null,null,null,null,null,null,null,null,null,null,null,null,null,null,null,null,null,null,null,null,null,null,null,null,null,null,null,null,null,null,null,null,null,null,null,null,null,null,null,null,null,null,null,null,null,null,null,null,null,null,null,null,null,null,null,null,null,"",null,null,null,null,null,null,null,null,null,null,"",null,null,null,null,null,null,null,null,null,null,"",null,null,null,null,null,null,null,null,null,null,"",null,null,null,null,null,null,null,null,"","","","","",1,"",1,1,"","","","","","","","","","","","","","","","","","","","","","","","","","","","","","","",""]
[47,null,null,"",null,null,null,null,null,null,null,null,null,null,null,null,null,null,null,null,null,null,null,null,null,null,null,null,null,null,null,null,null,null,null,null,null,null,null,null,null,null,null,null,null,null,null,null,null,"",null,null,null,null,null,null,null,null,null,null,null,null,null,null,null,null,null,null,null,null,null,null,null,null,null,null,null,null,null,null,null,null,null,null,null,null,null,null,null,null,null,null,null,null,null,null,null,null,null,null,null,null,null,null,null,null,null,null,null,null,null,null,null,null,null,null,null,null,null,null,null,null,null,null,null,null,null,null,null,null,null,null,null,null,null,null,null,null,null,null,null,null,null,null,null,null,null,null,null,null,"",null,null,null,null,null,null,null,null,null,null,"",null,null,null,null,null,null,null,null,null,null,"",null,null,null,null,null,null,null,null,null,null,"",null,null,null,null,null,null,null,null,"","","","","",1,"",1,1,"","","","","","","","","","","","","","","","","","","","","","","","","","","","","","","",""]
[48,null,null,"",null,null,null,null,null,null,null,null,null,null,null,null,null,null,null,null,null,null,null,null,null,null,null,null,null,null,null,null,null,null,null,null,null,null,null,null,null,null,null,null,null,null,null,null,null,"",null,null,null,null,null,null,null,null,null,null,null,null,null,null,null,null,null,null,null,null,null,null,null,null,null,null,null,null,null,null,null,null,null,null,null,null,null,null,null,null,null,null,null,null,null,null,null,null,null,null,null,null,null,null,null,null,null,null,null,null,null,null,null,null,null,null,null,null,null,null,null,null,null,null,null,null,null,null,null,null,null,null,null,null,null,null,null,null,null,null,null,null,null,null,null,null,null,null,null,null,"",null,null,null,null,null,null,null,null,null,null,"",null,null,null,null,null,null,null,null,null,null,"",null,null,null,null,null,null,null,null,null,null,"",null,null,null,null,null,null,null,null,"","","","","",1,"",1,1,"","","","","","","","","","","","","","","","","","","","","","","","","","","","","","","",""]
[49,null,null,"",null,null,null,null,null,null,null,null,null,null,null,null,null,null,null,null,null,null,null,null,null,null,null,null,null,null,null,null,null,null,null,null,null,null,null,null,null,null,null,null,null,null,null,null,null,"",null,null,null,null,null,null,null,null,null,null,null,null,null,null,null,null,null,null,null,null,null,null,null,null,null,null,null,null,null,null,null,null,null,null,null,null,null,null,null,null,null,null,null,null,null,null,null,null,null,null,null,null,null,null,null,null,null,null,null,null,null,null,null,null,null,null,null,null,null,null,null,null,null,null,null,null,null,null,null,null,null,null,null,null,null,null,null,null,null,null,null,null,null,null,null,null,null,null,null,null,"",null,null,null,null,null,null,null,null,null,null,"",null,null,null,null,null,null,null,null,null,null,"",null,null,null,null,null,null,null,null,null,null,"",null,null,null,null,null,null,null,null,"","","","","",1,"",1,1,"","","","","","","","","","","","","","","","","","","","","","","","","","","","","","","",""]
[50,null,null,"",null,null,null,null,null,null,null,null,null,null,null,null,null,null,null,null,null,null,null,null,null,null,null,null,null,null,null,null,null,null,null,null,null,null,null,null,null,null,null,null,null,null,null,null,null,"",null,null,null,null,null,null,null,null,null,null,null,null,null,null,null,null,null,null,null,null,null,null,null,null,null,null,null,null,null,null,null,null,null,null,null,null,null,null,null,null,null,null,null,null,null,null,null,null,null,null,null,null,null,null,null,null,null,null,null,null,null,null,null,null,null,null,null,null,null,null,null,null,null,null,null,null,null,null,null,null,null,null,null,null,null,null,null,null,null,null,null,null,null,null,null,null,null,null,null,null,"",null,null,null,null,null,null,null,null,null,null,"",null,null,null,null,null,null,null,null,null,null,"",null,null,null,null,null,null,null,null,null,null,"",null,null,null,null,null,null,null,null,"","","","","",1,"",1,1,"","","","","","","","","","","","","","","","","","","","","","","","","","","","","","","",""]

{"sheet":"マスターシート","index":2,"n_rows":19,"n_cols":37,"rows_kept":19,"cut":false,"hidden":true,"merged":[]}
[]
[null,"チェックＢＯＸ","免震構造物","共用排水","地盤調査方法","直接基礎_構造方法","直接基礎_形式","杭種","選択","選択○×","界床","避難器具種類","躯体天井","異なる天井","変更障害","地域区分","開口部住戸位置","出入口","排煙形式","平面形状","等級0_2","等級0_3","等級0_4","等級0_5",null,"等級1_2","等級1_3","等級1_4","等級1_5","等級_320","等級1_8","スラブ厚","温熱環境に関すること","等級5_1","等級5_2","重量床衝撃音対策","軽量床衝撃音対策"]
[null,"□"]
[null,"■","免震建築物","共用廊下に面する共用部分","標準貫入試験","鉄筋コンクリート造","ベタ基礎","支持杭","○","○","なし","避難はしご","地上","該当なし","なし","Ⅰ","地下","有効","a.開放型廊下","a.２方向避難",2,3,4,5,null,2,3,5,5,3,8,0,"熱損失係数",7,8,"対策等級","対策等級"]
[null,null,"その他","外壁面、吹き抜け等の住戸外周部","スクリューウエイト貫入試験","直接基礎","独立基礎","摩擦杭",null,"×","上階","滑り棒","地下","はり","壁","Ⅱ","地上","シャッター","b.自然排煙","b.直通階段",1,2,3,4,null,1,2,4,4,2,7,"a","熱貫流率",6,7,"相当スラブ厚","レベル低減量"]
[null,null,null,"バルコニー","平板載荷試験","SB工法","布基礎",null,null,null,"下階","避難ロープ","その他","傾斜屋根","柱","Ⅲ","屋上","その他","c.機械排煙(一般)","c.その他",0,1,2,3,null,null,1,3,3,0,6,"b",null,5,6]
[null,null,null,"住戸専用部","表面波探査法 ",null,null,null,null,null,"上階及び下階","避難用タラップ",null,"その他","壁柱","Ⅳ","中間階","無し","d.機械排煙(加圧式)",null,null,0,1,2,null,null,null,2,2,null,5,"c",null,4,5]
[null,null,null,"その他",null,null,null,null,null,null,null,"滑り台",null,null,null,"Ⅴ","その他",null,"e.その他",null,null,null,0,1,null,null,null,1,1,null,4,"d",null,3,4,"ｲ：対策等級","ｲ：対策等級"]
[null,null,null,null,null,null,null,null,null,null,null,"緩降機",null,null,null,"Ⅵ",null,null,null,null,null,null,null,0,null,null,null,null,null,null,3,"e",null,2,1,"ﾛ：相当スラブ厚","ﾛ：レベル低減量"]
[null,null,null,null,null,null,null,null,null,null,null,"避難橋",null,null,null,null,null,null,null,null,null,null,null,null,null,null,null,null,null,null,2,null,null,1]
[null,null,null,null,null,null,null,null,null,null,null,"救助袋",null,null,null,null,null,null,null,null,null,null,null,null,null,null,null,null,null,null,1]
[]
["自己評価書で不要になって移動したセル名："]
[]
["work_tower_N01_6_JIBAN_TYOUSA_2"]
[]
["work_tower_N01_6_JIBAN_TYOUSA_3"]
[]
["work_tower_N01_6_JIBAN_TYOUSA_4"]